{"text_format":"1","workbook":"xlsx","n_sheets":24,"sheets":["AEP Tariffs","TNCRate code Table","SharyRate code Table","TCCRate code Table","Discretionary Fees","SharyResidential","SharySec<10KW","SharySec>=10KW","Shary StreetLgt","TCCResidential","TCCSec<10KW","TCCSec>=10KW","TCCPrimary","TCCTrans","TCC StreetLgt","TCC NonRoadway","TNCResidential","TNCSec<10KW","TNCSec>=10KW","TNCPrimary","TNCTrans","TNC StreetLgt","TNC NonRoadway","Transmission"],"not_rendered":{"charts":0,"images":0,"macros":1,"external_links":0,"defined_names":39,"comments":13,"pivot_tables":0},"unopened":[],"bounds":{"document_bytes":16777216,"sheet_cells":100000,"rows_first":2000,"rows_last":500,"rows_between":2000,"halvings":0,"cell_chars":16384,"cell_head_chars":4096},"cells_cut":0,"cells_raw":0,"read":"whole","date_system":"1900"}

{"sheet":"AEP Tariffs","index":0,"n_rows":4,"n_cols":2,"rows_kept":4,"cut":false,"hidden":false,"merged":[[3,1,3,9]]}
[]
[]
[]
[null,"AEP Texas Tariffs"]

{"sheet":"TNCRate code Table","index":1,"n_rows":68,"n_cols":27,"rows_kept":68,"cut":false,"hidden":false,"merged":[]}
["AEP TEXAS - NORTH AREA",null,null,null,null,null,null,null,null,null,null,null,null,null,null,null,null,null,null,null,null,null,null,null,null,820,{"$f":"VLOOKUP(Z$1,A$8:C$106,3,FALSE)","v":"Residential"}]
[null,null,null,null,null,null,null,null,null,null,null,null,null,null,null,null,null,null,null,null,null,null,null,null,null,false]
[941,null,null,null,null,null,null,null,null,null,null,null,null,null,null,null,null,null,null,null,null,null,null,null,null,{"$f":"ISNA(VLOOKUP(Z$1,A$8:A$106,1,FALSE))","v":false}]
[]
[]
["Tariff","AEP Texas - North Area"]
["Code","Tariffs","Additional Tariff Description"]
[820,"Residential Service","Residential"]
[824,"Secondary Voltage Service Less Than or Equal to 10 kW","Metered Highway Safety Lighting"]
[825,"Secondary Voltage Service Less Than or Equal to 10 kW","Customer Owned Lighting"]
[829,"Secondary Voltage Service Less Than or Equal to 10 kW","Commercial"]
[830,"Secondary Voltage Service Greater Then 10 kW","Commercial Service (w/o demand meter) "]
[831,"Secondary Voltage Service Greater Then 10 kW","Cotton Gin Service (w/o demand meter) "]
[832,"Secondary Voltage Service Greater Then 10 kW","Commercial Heating (w/o demand meter) "]
[833,"Secondary Voltage Service Greater Then 10 kW","Mun. Water Pump (w/o demand meter) "]
[835,"Secondary Voltage Service Greater Then 10 kW","Customer Owned Lighting"]
[836,"Secondary Voltage Service Greater Then 10 kW","Non-IDR Meter"]
[837,"Secondary Voltage Service Greater Then 10 kW","IDR Meter"]
[838,"Secondary Voltage Service Greater Then 10 kW","Agriculture Non-IDR Meter"]
[839,"Secondary Voltage Service Greater Then 10 kW","Agriculture with IDR Meter"]
[841,"Primary Voltage Service","Non-IDR Meter"]
[842,"Primary Voltage Service","IDR Meter"]
[844,"Primary Voltage Service","Agriculture Non-IDR Meter"]
[845,"Primary Voltage Service","Agriculture with IDR Meter"]
[846,"Primary Voltage Service","Seasonal Agriculture Non-IDR Meter"]
[847,"Primary Voltage Service","Seasonal Agriculture with IDR Meter"]
[850,"Secondary Voltage Service Less Than or Equal to 10 kW","Unmetered"]
[852,"Secondary Voltage Service Less Than or Equal to 10 kW","Unmetered Customer Owned Flood Lighting"]
[857,"Secondary Voltage Service Greater Then 10 kW","Seasonal Agriculture Non-IDR Meter"]
[858,"Secondary Voltage Service Greater Then 10 kW","Seasonal Agriculture with IDR Meter"]
[860,"Transmission Voltage Service","Non Industrial"]
[861,"Transmission Voltage Service","Industrial - Inside City Limits"]
[862,"Transmission Voltage Service","Industrial - Outside City Limits"]
[901,"Non-Roadway Lighting Service","175 W Mercury Vapor"]
[902,"Non-Roadway Lighting Service","400 W Mercury Vapor"]
[903,"Non-Roadway Lighting Service","70 W High Pressure Sodium"]
[904,"Non-Roadway Lighting Service","150 W High Pressure Sodium"]
[905,"Non-Roadway Lighting Service","35 W Low Pressure Sodium"]
[906,"Non-Roadway Lighting Service","55 W Low Pressure Sodium"]
[907,"Non-Roadway Lighting Service","90 W Low Pressure Sodium"]
[908,"Non-Roadway Lighting Service","150 W HPS Floodlight"]
[909,"Non-Roadway Lighting Service","250 W HPS Floodlight"]
[910,"Non-Roadway Lighting Service","400 W HPS Floodlight"]
[911,"Non-Roadway Lighting Service","1000 W HPS Floodlight"]
[912,"Non-Roadway Lighting Service","250 W Metal Halide Floodlight"]
[913,"Non-Roadway Lighting Service","400 W Metal Halide Floodlight"]
[914,"Non-Roadway Lighting Service","1000 W Metal Halide Floodlight"]
[915,"Non-Roadway Lighting Service","100 W High Pressure Sodium"]
[916,"Non-Roadway Lighting Service","250 W High Pressure Sodium"]
[917,"Non-Roadway Lighting Service","100 W HPS Floodlight"]
[932,"Municipal Street Lighting Service","175 W Mercury Vapor"]
[935,"Municipal Street Lighting Service","400 W Mercury Vapor"]
[936,"Municipal Street Lighting Service","Twin 400 W Mercury Vapor"]
[940,"Municipal Street Lighting Service","35 W LPS"]
[941,"Municipal Street Lighting Service","55 W LPS"]
[942,"Municipal Street Lighting Service","90 W LPS"]
[943,"Municipal Street Lighting Service","Twin 90 W LPS"]
[944,"Municipal Street Lighting Service","70 W HPS"]
[945,"Municipal Street Lighting Service","100 W HPS"]
[946,"Municipal Street Lighting Service","150 W HPS"]
[947,"Municipal Street Lighting Service","250 W HPS"]
[948,"Municipal Street Lighting Service","Twin 150 W HPS"]
[949,"Municipal Street Lighting Service","400 W HPS"]
[950,"Municipal Street Lighting Service","Twin 250 W HPS"]
[955,"Municipal Street Lighting Service","1000 W HPS"]
[965,"Municipal Street Lighting Service","400 W Metal Halide"]
[966,"Municipal Street Lighting Service","1000 W Metal Halide"]
[971,"Municipal Street Lighting Service","500 W Incandescent"]

{"sheet":"SharyRate code Table","index":2,"n_rows":81,"n_cols":27,"rows_kept":81,"cut":false,"hidden":false,"merged":[]}
["AEP TEXAS - SHARYLAND AREA",null,null,null,null,null,null,null,null,null,null,null,null,null,null,null,null,null,null,null,null,null,null,null,null,990,{"$f":"VLOOKUP(Z$1,A$8:C$102,3,FALSE)","v":"150 W High Pressure Sodium"}]
[null,null,null,null,null,null,null,null,null,null,null,null,null,null,null,null,null,null,null,null,null,null,null,null,null,false]
[null,null,null,null,null,null,null,null,null,null,null,null,null,null,null,null,null,null,null,null,null,null,null,null,null,{"$f":"ISNA(VLOOKUP(Z$1,A$8:A$102,1,FALSE))","v":false}]
[]
[null,836]
["Tariff","AEP Texas - Sharyland Area"]
["Code","Tariffs","Additional Tariff Description"]
[822,"Residential Service","Residential"]
[825,"Secondary Voltage Service Less Than or Equal to 10 kW","Commercial Energy without IDR meter"]
[881,"Secondary Voltage Service Greater Then 10 kW","Commercial Demand Without IDR Meter"]
[882,"Secondary Voltage Service Greater Then 10 kW","Commercial Demand With IDR Meter"]
[990,"Municipal Street Lighting Service","150 W High Pressure Sodium"]
[991,"Municipal Street Lighting Service","250 W High Pressure Sodium"]
[992,"Municipal Street Lighting Service","400 W High Pressure Sodium"]
[993,"Municipal Street Lighting Service","175 W Metal Halide"]
[994,"Municipal Street Lighting Service","400 W Metal Halide"]
[]
[]
[]
[]
[]
[]
[]
[]
[]
[]
[]
[]
[]
[]
[]
[]
[]
[]
[]
[]
[]
[]
[]
[]
[]
[]
[]
[]
[]
[]
[]
[]
[]
[]
[]
[]
[]
[]
[]
[]
[]
[]
[]
[]
[]
[]
[]
[]
[]
[]
[]
[]
[]
[]
[946,"Municipal Street Lighting Service","150 W High Pressure Sodium"]
[947,"Municipal Street Lighting Service","250 W High Pressure Sodium"]
[949,"Municipal Street Lighting Service","400 W High Pressure Sodium"]
[]
[]
[]
[]
[]
[960,"Municipal Street Lighting Service","175 W Metal Halide"]
[]
[962,"Municipal Street Lighting Service","400 W Metal Halide"]

{"sheet":"TCCRate code Table","index":3,"n_rows":88,"n_cols":27,"rows_kept":88,"cut":false,"hidden":false,"merged":[]}
["AEP TEXAS - CENTRAL AREA",null,null,null,null,null,null,null,null,null,null,null,null,null,null,null,null,null,null,null,null,null,null,null,null,945,{"$f":"VLOOKUP(Z$1,A$8:C$102,3,FALSE)","v":"100 W High Pressure Sodium"}]
[null,null,null,null,null,null,null,null,null,null,null,null,null,null,null,null,null,null,null,null,null,null,null,null,null,false]
[890,null,null,null,null,null,null,null,null,null,null,null,null,null,null,null,null,null,null,null,null,null,null,null,null,{"$f":"ISNA(VLOOKUP(Z$1,A$8:A$102,1,FALSE))","v":false}]
[]
[null,836]
["Tariff","AEP Texas - Central Area"]
["Code","Tariffs","Additional Tariff Description"]
[820,"Residential Service","Residential"]
[826,"Secondary Voltage Service Less Than or Equal to 10 kW","Recreational Night Lighting"]
[827,"Secondary Voltage Service Less Than or Equal to 10 kW","Commercial Demand without IDR meter"]
[828,"Secondary Voltage Service Less Than or Equal to 10 kW","Municipal Water Pumping & Cotton Gins"]
[829,"Secondary Voltage Service Less Than or Equal to 10 kW","Commercial Energy without IDR meter"]
[830,"Secondary Voltage Service Greater Then 10 kW","Recreational Night Lighting"]
[831,"Secondary Voltage Service Greater Then 10 kW","Cotton Gin without IDR meter"]
[833,"Secondary Voltage Service Greater Then 10 kW","Municipal Water Pumping with demand meter without IDR"]
[834,"Secondary Voltage Service Greater Then 10 kW","Municipal Water Pumping with IDR meter"]
[835,"Secondary Voltage Service Greater Then 10 kW","Cotton Gin with IDR Meter"]
[836,"Secondary Voltage Service Greater Then 10 kW","Seasonal Ag without IDR Meter"]
[837,"Secondary Voltage Service Greater Then 10 kW","Seasonal Ag with IDR Meter"]
[838,"Secondary Voltage Service Greater Then 10 kW","Irrigation without IDR Meter"]
[839,"Secondary Voltage Service Greater Then 10 kW","Irrigation with IDR Meter"]
[841,"Primary Voltage Service","Without IDR Meter"]
[842,"Primary Voltage Service","With IDR Meter"]
[844,"Primary Voltage Service","Irrigation Without IDR Meter"]
[845,"Primary Voltage Service","Irrigation With IDR Meter"]
[846,"Primary Voltage Service","Seasonal Ag without IDR Meter"]
[847,"Primary Voltage Service","Seasonal Ag with IDR Meter"]
[848,"Primary Voltage Service","Municipal Water Pumping Without IDR Meter"]
[849,"Primary Voltage Service","Municipal Water Pumping With IDR Meter"]
[850,"Secondary Voltage Service Less Than or Equal to 10 kW","Unmetered"]
[851,"Secondary Voltage Service Less Than or Equal to 10 kW","Unmetered Cust Owned Street Light, Traffic Signal"]
[852,"Secondary Voltage Service Less Than or Equal to 10 kW","Unmetered Customer Owned Flood Lights"]
[853,"Secondary Voltage Service Greater Then 10 kW","Commercial Demand TC/CTC  (Machine billed-4CP)"]
[855,"Secondary Voltage Service Greater Then 10 kW","Commercial Energy Without IDR Meter"]
[856,"Secondary Voltage Service Greater Then 10 kW","Commercial Energy With IDR Meter"]
[857,"Secondary Voltage Service Greater Then 10 kW","Commercial Demand Without IDR Meter"]
[858,"Secondary Voltage Service Greater Then 10 kW","Commercial Demand With IDR Meter"]
[860,"Transmission Voltage Service","Non Industrial "]
[861,"Transmission Voltage Service","Lg Industrial Firm TC"]
[863,"Transmission Voltage Service","Non Industrial Commercial Demand TC/CTC"]
[864,"Transmission Voltage Service","Non Industrial Standby Non-Firm"]
[865,"Transmission Voltage Service","Non Industrial Non-Firm"]
[866,"Transmission Voltage Service","Non Industrial  (Machine billed-Hist. TC)"]
[870,"Transmission Voltage Service","Lg Ind Standby Firm Outside City"]
[871,"Transmission Voltage Service","Lg Ind Non-Firm Outside City"]
[872,"Transmission Voltage Service","Lg Ind Standby Non Firm Outside City"]
[873,"Transmission Voltage Service","Lg Ind Non-Firm Inside City"]
[874,"Transmission Voltage Service","Lg Ind Firm - Outside City Limit"]
[875,"Transmission Voltage Service","Lg Ind Firm - Inside City Limit"]
[901,"Non-Roadway Lighting Service","175 W Mercury Vapor"]
[902,"Non-Roadway Lighting Service","400 W Mercury Vapor"]
[903,"Non-Roadway Lighting Service","100 W High Pressure Sodium"]
[904,"Non-Roadway Lighting Service","150 W High Pressure Sodium"]
[905,"Non-Roadway Lighting Service","250 W High Pressure Sodium"]
[906,"Non-Roadway Lighting Service","100 W High Pressure Sodium Floodlight"]
[907,"Non-Roadway Lighting Service","250 W High Pressure Sodium Floodlight"]
[908,"Non-Roadway Lighting Service","400 W High Pressure Sodium Floodlight"]
[909,"Non-Roadway Lighting Service","1000 W High Pressure Sodium Floodlight"]
[910,"Non-Roadway Lighting Service","250 W Metal Halide Floodlight"]
[911,"Non-Roadway Lighting Service","400 W Metal Halide Floodlight"]
[912,"Non-Roadway Lighting Service","1000 W 6X7 Floodlight"]
[913,"Non-Roadway Lighting Service","1000 W 3X3 Floodlight"]
[931,"Municipal Street Lighting Service","100 W Mercury Vapor"]
[932,"Municipal Street Lighting Service","175 W Mercury Vapor"]
[933,"Municipal Street Lighting Service","250 W Mercury Vapor"]
[935,"Municipal Street Lighting Service","400 W Mercury Vapor"]
[937,"Municipal Street Lighting Service","1000 W Mercury Vapor"]
[938,"Municipal Street Lighting Service","Twin 400 W Mercury Vapor"]
[944,"Municipal Street Lighting Service","70 W High Pressure Sodium"]
[945,"Municipal Street Lighting Service","100 W High Pressure Sodium"]
[946,"Municipal Street Lighting Service","150 W High Pressure Sodium"]
[947,"Municipal Street Lighting Service","250 W High Pressure Sodium"]
[949,"Municipal Street Lighting Service","400 W High Pressure Sodium"]
[952,"Municipal Street Lighting Service","Twin 150 W High Pressure Sodium"]
[953,"Municipal Street Lighting Service","Twin 250 W High Pressure Sodium"]
[954,"Municipal Street Lighting Service","Twin 400 W High Pressure Sodium"]
[955,"Municipal Street Lighting Service","1,000 W High Pressure Sodium"]
[959,"Municipal Street Lighting Service","150 W Metal Halide"]
[960,"Municipal Street Lighting Service","175 W Metal Halide"]
[961,"Municipal Street Lighting Service","250 W Metal Halide"]
[962,"Municipal Street Lighting Service","400 W Metal Halide"]
[964,"Municipal Street Lighting Service","Twin 250 W Metal Halide"]
[965,"Municipal Street Lighting Service","Twin 400 W Metal Halide"]
[966,"Municipal Street Lighting Service","1,000 W Metal Halide"]
[975,"Municipal Street Lighting Service","400 W Metal Halide  McAllen, Odem and Uvalde"]
[976,"Municipal Street Lighting Service","175 W Post Top  McAllen, Odem and Uvalde"]
[977,"Municipal Street Lighting Service","100 W Post Top  McAllen, Odem and Uvalde"]
[978,"Municipal Street Lighting Service","150 W Metal Halide Post Top McAllen, Odem and Uvalde"]

{"sheet":"Discretionary Fees","index":4,"n_rows":130,"n_cols":9,"rows_kept":130,"cut":false,"hidden":false,"merged":[[7,0,7,8],[80,0,80,8],[121,0,121,8]]}
[]
[]
["Discretionary Charges for AEP TX - Central Area, North Area, and Sharyland Area"]
[null,null,"Central &","Central &","Central &","North","North","North"]
[null,null,"Sharyland Areas","Sharyland Areas","Sharyland Areas","Area","Area","Area","810_02"]
[null,null,"Standard Mtr","Non-Standard Mtr","AMS-M-Mtr","Standard Mtr","Non-Standard Mtr","AMS-M-Mtr","SAC04"]
["Description of Charge or Rider",null,null,null,null,null,null,null,"Code"]
["Mandatory Services"]
["Standard Move-in"]
[null,"Self -Contained Meter (existing)",null,"N/A",3,0,"N/A",1,"SER019"]
[null,"Self -Contained Meter (New)",47,"N/A",null,51,null,51,"SER019"]
[null,"CT/Other Meter (existing)",null,102,null,0,110,110,"SER015"]
[null,"CT/Other Meter (New)",null,301,null,0,305,305,"SER015"]
["Priority Move-in"]
[null,"Self -Contained Meter (existing)",0,"N/A",9,0,"N/A",5,"SER019"]
[null,"CT/Other Meter (existing)",null,152,152,0,163,163,"SER015"]
["Move-Out (Fee is included in the Move-in Charge)",null,"Included in Move-In ","Included in Move-In ","Included in Move-In ","Included in Move-In ","Included in Move-In ","Included in Move-In "]
["Customer Requested Clearance (Temporary Disconnect)"]
[null,"With three Business Days Notice (residential)",0,null,null,0,null,null,"SER131"]
[null,"With three Business Days Notice (non - residential)",0,null,null,0,null,null,"SER131"]
[null,"With less than Three Business Days notice","As Calculated","As Calculated","As Calculated","As Calculated","As Calculated","As Calculated","SER131"]
["Disconnect for Non-Pay (DNP)"]
[null,"At Meter"]
[null,"      Standard Disconnect",0,20,20,0,21,21,"SER024"]
[null,"      Same Day (Priority) Disconnect","Not Available",null,null,"Not Available",null,null,"SER024"]
[null,"      Holiday","Not Available",null,null,"Not Available"]
[null,"At Premium Location (i.e. pole, weatherhead, secondary box)"]
[null,"      Same Day (Priority) Disconnect",56,56,56,58,58,58,"SER026"]
[null,null,"Not Available",null,null,"Not Available",null,null,"SER026"]
[null,"      Holiday","Not Available",null,null,"Not Available"]
["Reconnect After Disconnect for Non-Pay (DNP)"]
[null,"At Meter"]
[null,"      Standard Reconnect","$                                     -",20,20,0,11,11,"SER030"]
[null,"      Same Day (Priority) Reconnect","$                                     -",38,38,0,39,39,"SER031"]
[null,"      Weekend","$                                     -",48,48,0,53,53,"SER032"]
[null,"      Holiday","$                                     -",60,60,0,66,66,"SER033"]
[null,"At Premium Location (i.e. pole, weatherhead, secondary box)"]
[null,"      Standard Reconnect",56,56,56,58,58,58,"SER034"]
[null,"      Same Day (Priority) Reconnect",107,107,107,110,110,110,"SER029"]
[null,"      Weekend",107,107,107,110,110,110,"SER035"]
[null,"      Holiday",133,133,133,136,136,136,"SER036"]
["Meter Test Charge"]
[null,"Self-Contained Meter - Company Owned"]
[null,"      First test within the previous four years",0,null,null,0]
[null,"      Found outside of the accuracy standards",0,null,null,0]
[null,"      All other",111,111,111,112,112,112,"SER058"]
[null,"CT/Other Meter - Company Owned"]
[null,"      First test within the previous four years",0,null,null,0]
[null,"      Found outside of the accuracy standards",0,null,null,0]
[null,"      All other",139,139,139,140,140,140,"SER063"]
[null,"Competitive Meter",139,139,139,140,140,140,"SER062"]
["Re-Reads"]
[null,"Meter Reading found to be in error",0,null,null,0]
[null,"Meter Reading found to be accurate",0,17,null,null,17,null,"SER010"]
[" Meter Reads/Estimates - For the Purpose of a Switch"]
[null,"Out-of-Cycle Meter Read for the Purpose of a Self-Selected Switch ",0,16,null,0,16,null,"SER010"]
[null,"Meter Read for the Purpose of a Standard Switch",0,0,null,0,null,null,"N/A"]
[null,"Out-of-Cycle Meter Estimation for the Purpose of a Switch (Due to Denial of Access by Retail Customer)",0,18,null,null,18,null,"SER010"]
[null,"Out -of-Cycle Estimate for the Purpose of a Mass Transition",0,null,null,0,null,null,"N/A"]
["Off-Site Meter Reading (OMR) Equipment Installation"]
[null,"During Normal Business Hours",41,41,41,44,44,44,"SER073"]
["Automated Meter Reading (AMR) Equipment Installation"]
[null,"Single-Phase Self Contained - During Normal Business Hours",368,368,368,341,341,341,"SER076"]
[null,"Three-Phase Self Contained - During Normal Business Hours",340,340,340,314,314,314,"SER077"]
[null,"Single-Phase Instrument Rated - During Normal Business Hours",338,338,338,312,312,312,"SER078"]
[null,"Three-Phase Instrument Rated - During Normal Business Hours",368,368,368,342,342,342,"SER079"]
["Interval Data Recorder (IDR) Equipment Installation"]
[null,"During Normal Business Hours",469,469,469,471,471,471,"SER082"]
["Service Call Charge"]
[null,"During Business Days, 8:00 AM - 5:00 PM CPT",70,70,70,72,72,72,"SER070"]
[null,"Business Day, Non-Business Hours",134,134,134,138,138,138,"SER071"]
[null,"Weekend",134,134,134,138,138,138,"SER071"]
[null,"Holiday",167,167,167,171,171,171,"SER071"]
["Security Light Repair",null,null,"As Calculated",null,0,"As Calculated",null,"ODL006"]
["Security Light Removal",null,null,"As Calculated",null,0,"As Calculated",null,"ODL006"]
["Street Light Removal",null,null,"As Calculated",null,0,"As Calculated",null,"ODL006"]
["Tampering Charge",null,"As Calculated","As Calculated","As Calculated","As Calculated","As Calculated","As Calculated","SER072"]
["Broken Meter Seal  (Only for Self - Connects and Repeat Offenders)",null,62,62,62,65,65,65,"SER130"]
["Inaccessible Meter Charge (Applies only to Critical Load Accounts)",null,100,100,100,101,101,101,"SER133"]
[]
["Non-Construction Services"]
["Dispatched Order Cancellation Fee ( Billed only if canceled or completed unexecutable on the date requested)"]
["Cancelled Order"]
[null,"Routine Order",13,13,13,13,13,13,"SER132"]
[null,"Priority Order",22,22,22,22,22,22,"SER132"]
["Unexecutable Order"]
[null,"Routine Order",20,20,20,20,20,20,"SER132"]
[null,"Priority Order",31,31,31,32,32,32,"SER132"]
["Builder's Construction Service Fee - During Normal Business Hours",null,43,43,43,44,44,44,"SER053"]
["Temporary Service Fee - During Normal Business Hours",null,207,207,207,212,212,212,"SER046"]
["Returned Instrument Fee",null,43,43,43,43,43,43,"N/A"]
["Special Products/Services Fee",null,"Estimated Cost","Estimated Cost","Estimated Cost","Estimated Cost","Estimated Cost","Estimated Cost","MSC034"]
["Facilities Monthly Maintenance Service Fee",null,"Installed Cost x .72%","Installed Cost x .72%","Installed Cost x .72%","Installed Cost x .72%","Installed Cost x .72%","Installed Cost x .72%","N/A"]
["Distribution Voltage Facilities Rental Service Fee",null,"Installed Cost x 1.71%","Installed Cost x 1.71%","Installed Cost x 1.71%","Installed Cost x 1.90%","Installed Cost x 1.90%","Installed Cost x 1.90%","N/A"]
["System Integral Facilities Rental Service Fee",null,"Installed Cost x 1.71%","Installed Cost x 1.71%","Installed Cost x 1.71%","Installed Cost x 1.90%","Installed Cost x 1.90%","Installed Cost x 1.90%","N/A"]
["Advanced Metering Equipment Installation and/or Access to Meter Data Fee"]
[null,"Requests for Advanced Metering for a Typical Installation (IDR Meter without Remote Interrogation) - Fixed Price if existing billing meter is a standard meter",182,182,182,183,183,183,"SER082"]
[null,"Requests for Advanced Metering for a Typical Installation (IDR Meter without Remote Interrogation) - Fixed Price if new installation with no existing billing meter",169,169,169,170,170,170,"SER082"]
[null,"Requests for K-Y-Z Outputs Only for a Typical Installation - Fixed Price if existing billing meter is a standard meter",299,299,299,301,301,301,"SER083"]
[null,"Requests for K-Y-Z Outputs Only for a Typical Installation - Fixed Price if existing billing meter is already advanced Metering or for a new installation where no billing meter currently exists",285,285,285,287,287,287,"SER083"]
[null,"Requests for both K-Y-Z Outputs and Remote Meter Access for a Typical Installation - Fixed Price if existing billing meter is already advanced metering",438,438,438,440,440,440,"SER083"]
[null,"Requests for both K-Y-Z Outputs and Remote Meter Access for a Typical Installation - Fixed Price if new installation with no existing billing meter",424,424,424,426,426,426,"SER083"]
[null,"Request for Non-Typical Installations of Solid-State Advanced Metering - Not specifically covered above or covered in any other discretionary fee","Estimated Cost","Estimated Cost","Estimated Cost","Estimated Cost","Estimated Cost","Estimated Cost","SER084"]
["Competitive Meter Removal/Install Fee"]
[null,"Self-Contained Meter",52,null,null,52,null,null,"SER138"]
[null,"CT Meter",77,null,null,77,null,null,"SER138"]
["Competitive Meter Physical Access Equipment Installation Fee"]
[null,"Performed during Initial Meter Installation",42,null,null,42,null,null,"SER138"]
[null,"Performed after Initial Meter Installation",72,72,72,73,73,73,"SER138"]
["Competitive Meter Non-Standard Programming Fee"]
[null,"Non-Standard Programming Prior to Installation",25,25,25,25,25,25,"SER138"]
[null,"Non-Standard Field Programming on Previously Installed Meter",58,58,58,58,58,58,"SER138"]
["Dual Register Meter Installation Fee"]
["Request for Single-Phase Dual Register Meter Installation:"]
[null,"Fixed Price if the Existing Billing Meter is a Standard Meter",124,124,124,127,127,127,"SER135"]
[null,"Fixed Price if New Installation with no Existing Meter",97,97,97,97,97,97,"SER135"]
["Request for Poly-Phase Dual Register Meter Installation"]
[null,"Fixed Price if the Existing Billing Meter is a Standard Meter",57,57,57,60,60,60,"SER135"]
[null,"Fixed Price if New Installation with no Existing Meter",30,30,30,30,30,30,"SER135"]
["Meter Communications Diagnostic Fee - During Normal Business Hours",null,85,85,85,86,86,86]
[]
["Construction Services "]
["Facilities Extension Schedule",null,"As Calculated pursuant to the Schedule","As Calculated pursuant to the Schedule","As Calculated pursuant to the Schedule","As Calculated pursuant to the Schedule","As Calculated pursuant to the Schedule","As Calculated pursuant to the Schedule","N/A"]
["Retail Electric Switchover Fee"]
[null,"Base Charge",416,416,416,419,419,419,"N/A"]
[null,"Base Charge Adder",114,114,114,115,115,115,"N/A"]
["Facilities Relocation/Modification Fee",null,"Estimated Costs","Estimated Costs","Estimated Costs","Estimated Costs","Estimated Costs","Estimated Costs","N/A"]
["Special Products/Services Fee",null,"Estimated Costs","Estimated Costs","Estimated Costs","Estimated Costs","Estimated Costs","Estimated Costs","N/A"]
["Emergency Maintenance Service Fee",null,"Estimated Costs","Estimated Costs","Estimated Costs","Estimated Costs","Estimated Costs","Estimated Costs","N/A"]
["Customized Maintenance Service Fee",null,"Estimated Costs","Estimated Costs","Estimated Costs","Estimated Costs","Estimated Costs","Estimated Costs","N/A"]

{"sheet":"SharyResidential","index":5,"n_rows":68,"n_cols":13,"rows_kept":68,"cut":false,"hidden":false,"merged":[[0,0,0,1],[6,3,6,4],[6,8,6,12],[7,3,7,4],[8,0,8,1],[1,0,1,1],[2,0,2,1],[3,0,3,1]]}
["AEP Texas - Sharyland Area"]
[{"$f":"IF(A3=\"All Rate Codes\",\"Billing Determinants for\",\"Billing Determinants for Rate Code\")","v":"Billing Determinants for"}]
["All Rate Codes"]
[{"$f":"IF(A3=\"All Rate Codes\",\"\",VLOOKUP(A3,'SharyRate code Table'!A8:C202,3,FALSE))","v":""}]
["RESIDENTIAL  SERVICE"]
[null,null,"810_02",null,null,null,null,"Estimated"]
[null,null,"SAC04","Approved Rate",null,"Docket","Effective","Revision or","Applicable Rate Codes"]
[".",null,"Code","Cost / Unit",null," Number","Date","Termination Date",822]
["BASE CHARGES",null,null,null,null,null,null,null,"x","x","x","x","x"]
["Customer Charge",null,"BAS001",3.19,"per month",35093,"2008-01-30","Not Scheduled","x"]
["Metering Charge",null,"BAS003",3.55,"per month",35093,"2008-01-30","Not Scheduled","x"]
["Transmission System Charge",null,"TRN001",5.1900000000000002E-3,"per kWh",35093,"2008-01-30","Not Scheduled","x"]
["Distribution System Charge",null,"DIS001",1.3915E-2,"per kWh",35093,"2008-01-30","Not Scheduled","x"]
[]
["RIDER CHARGES",null,null,null,null,null,null,null,"x","x","x","x","x"]
["SBF (System Benefit Fund)",null,"MSC024","0.000000","per kWh",46050,"2017-01-01","Revise 1/01/2017","x"]
["EECRF (Energy Efficiency Cost Recovery Factor)",null,"MSC041",5.5400000000000002E-4,"per kWh",48422,"2019-03-01","Revise 3/01/2020","x"]
["NDC (Nuclear Decommissioning Collections)",null,"MSC025",2.8E-5,"per kWh",49163,"2019-05-30","Not Scheduled"," "]
["AMSCRF (Advanced Metering System Cost Recovery Fee)",null,"MSC039",2.2599999999999998,"per month",36928,"2014-01-29","Revise 12/29/2020","x"]
["TCRF (Transmission Cost Recovery Factor) ",null,"TRN002",1.0026999999999999E-2,"per kWh",49580,"2019-09-01","Revise 9/01/2020","x"]
["TC-3 (Transition Charge - 3)",null,"MSC037",2.8969999999999998E-3,"per kWh",49219,"2019-02-28","Revised 2/28/2020"," "]
["TC-2 (Transition Charge - 2)",null,"MSC036",8.8159999999999992E-3,"per kWh",49553,"2019-08-28","Revise 8/28/2020"," "]
["DCRF-Distribution Cost Recovery Factor",null,"MSC042",2.1580000000000002E-3,"per KWh",48222,"2018-09-01","Not Scheduled","x"]
["SRC - System Restoration Charge Factor",null,"MSC038",1.4549999999999999E-3,"per KWh",49308,"2019-09-18","Revise 9/18/2020"," "]
["ADIFIT- Accumulated Deferred Federal Income Tax Credit",null,"CRE031",-1.66E-4,"per KWh",49308,"2019-09-18","Revise 9/18/2020"," "]
["MSC - Merger Savings Credit",null,"RRR008",-9.2900000000000003E-4,"per KWh",49028,"2019-08-28","Cr.Sept. 2019 Only","x"]
[]
[]
[]
[]
[]
[]
[]
[]
[]
[]
[]
[]
[]
[]
[]
[]
[]
[]
[]
[]
[]
[]
[]
[]
[]
[]
[]
[]
[]
[]
[]
[]
[]
[]
[]
[]
[]
[]
[]
[]
[]
[null,null,null,null,null,null,null,null,"x","x","x","x","x"]

{"sheet":"SharySec<10KW","index":6,"n_rows":67,"n_cols":17,"rows_kept":67,"cut":false,"hidden":false,"merged":[[6,8,6,14],[7,3,7,4],[8,0,8,1],[0,0,0,1],[1,0,1,1],[2,0,2,1],[3,0,3,1],[6,3,6,4]]}
["AEP Texas - Sharyland Area"]
[{"$f":"IF(A3=\"All Rate Codes\",\"Billing Determinants for\",\"Billing Determinants for Rate Code\")","v":"Billing Determinants for"}]
["All Rate Codes"]
[{"$f":"IF(A3=\"All Rate Codes\",\"\",VLOOKUP(A3,'SharyRate code Table'!A8:C202,3,FALSE))","v":""}]
["SECONDARY VOLTAGE SERVICE LESS THAN OR EQUAL TO 10 KW"]
[null,null,"810_02",null,null,null,null,"Estimated"]
[null,null,"SAC04","Approved Rate",null,"Docket","Effective","Revision or","Applicable Rate Codes"]
["Description of Charge or Rider",null,"Code","Cost / Unit",null," Number","Date","Termination Date",825]
["BASE CHARGES",null,null,null,null,null,null,null,"x","x","x","x","x","x","x","X","X"]
["Customer Charge",null,"BAS001",3.2,"per month",35093,"2008-01-30","Not Scheduled","x"]
["Metering Charge",null,"BAS003",3.68,"per month",35093,"2008-01-30","Not Scheduled","x"]
["Transmission System Charge  ",null,"TRN001",2.5119999999999999E-3,"per kWh",35093,"2008-01-30","Not Scheduled","x"]
["Distribution System Charge     ",null,"DIS001",1.5488999999999999E-2,"per kWh",35093,"2008-01-30","Not Scheduled","x"]
[]
["RIDER CHARGES",null,null,null,null,null,null,null,"x","x","x","x","x","x","x","X","X"]
["SBF (System Benefit Fund)",null,"MSC024","0.000000","per kWh",46050,"2017-01-01","Revise 1/01/2017","x"]
["EECRF (Energy Efficiency Cost Recovery Factor)",null,"MSC041",1.1900000000000001E-4,"per kWh",48422,"2019-03-01","Revise 3/01/2020","x"]
["NDC (Nuclear Decommissioning Collections)",null,"MSC025",3.4999999999999997E-5,"per kWh",49163,"2019-05-30","Not Scheduled"," "]
["TCRF (Transmission Cost Recovery Factor)",null,"TRN002",4.7739999999999996E-3,"per kWh",49580,"2019-09-01","Revise 9/01/2020","x"]
["AMSCRF","(Advanced Metering System Cost Recovery Factor)","MSC039",4.17,"per month",36928,"2014-01-29","Revise 12/29/2020","x"]
["TC-3 (Transition Charge - 3)",null,null,null,null,null,null,null," ","x","x","x","x","x","x"]
[null,"Commercial & Small Industrial - Energy","MSC037",8.0870000000000004E-3,"per kWh",49219,"2019-02-28","Revise 2/28/2020"," "]
[null,"Commercial & Small Industrial - Demand","MSC037",0.76452100000000001,"per kW",49219,"2019-02-28","Revise 2/28/2020"]
[null,"Municipal Water Pumping and Cotton Gin","MSC037",4.5560000000000002E-3,"per kWh",49219,"2019-02-28","Revise 2/28/2020",null,null,null,null,null,null,null,"X","X"]
["TC-2 (Transition Charge - 2)",null,null,null,null,null,null,null," ","x","x","x","x","x","x"]
[null,"Commercial & Small Industrial - Energy","MSC036",1.9293999999999999E-2,"per kWh",49553,"2019-08-28","Revise 8/28/2020"," "]
[null,"Commercial & Small Industrial - Demand","MSC036",2.3785289999999999,"per kW",48394,"2018-08-28","Revise 8/28/2019"]
[null,"Municipal Water Pumping and Cotton Gin","MSC036",1.3931000000000001E-2,"per kWh",49553,"2019-08-28","Revise 8/28/2020",null,null,null,null,null,null,null,"X","X"]
["DCRF-Distribution Cost Recovery Factor",null,null,null,null,null,null,null,"x","x","x","x","x","x","x"]
[null,"Commercial & Small Industrial- Energy","MSC042",5.7959999999999999E-3,"per kWh",48222,"2018-09-01","Not Scheduled","x"]
[null,"Commercial & Small Industrial- Non IDR Kw","MSC042",5.7959999999999999E-3,"per KW",48222,"2018-09-01","Revise 9-01-2019"]
[null,"Secondary Service Less Than or Equal to 10 Kw","MSC042",5.7959999999999999E-3,"per kWh",48222,"2018-09-01","Revise 9-01/2019"]
["SRC - System Restoration Charge Factor",null,"MSC038",1.7979999999999999E-3,"per kWh",49308,"2019-09-18","Revise 9/18/2020"," "]
["ADIFIT- Accumulated Deferred Federal Income Tax Credit",null,"CRE031",-2.05E-4,"per kWh",49308,"2019-09-18","Revise 9/18/2020"," "]
["MSC - Merger Savings Credit",null,"RRR008",-1.281E-3,"per kWh",49028,"2019-08-28","Cr. Sept.2019 Only","x"]
[]
[]
[]
[]
[]
[]
[]
[]
[]
[]
[]
[]
[]
[]
[]
[]
[]
[]
[]
[]
[]
[]
[]
[]
[]
[]
[]
[]
[]
[]
[]
[null,null,null,null,null,null,null,null,"x","x","x","x","x","x","x"]

{"sheet":"SharySec>=10KW","index":7,"n_rows":68,"n_cols":22,"rows_kept":68,"cut":false,"hidden":false,"merged":[[6,8,6,21],[7,3,7,4],[8,0,8,1],[0,0,0,1],[1,0,1,1],[2,0,2,1],[3,0,3,1],[6,3,6,4]]}
["AEP Texas - Sharyland Area"]
[{"$f":"IF(A3=\"All Rate Codes\",\"Billing Determinants for\",\"Billing Determinants for Rate Code\")","v":"Billing Determinants for"}]
["All Rate Codes"]
[{"$f":"IF(A3=\"All Rate Codes\",\"\",VLOOKUP(A3,'SharyRate code Table'!A8:C202,3,FALSE))","v":""}]
["SECONDARY VOLTAGE SERVICE GREATER THAN 10 KW"]
[null,null,"810_02",null,null,null,null,"Estimated Next"]
[null,null,"SAC04","Approved Rate",null,"Docket","Effective","Revision or","Applicable Rate Codes"]
["Description of Charge or Rider",null,"Code","Cost / Unit",null,"Number","Date","Termination Date",881,882]
["BASE CHARGES",null,null,null,null,null,null,null,"x","x","x","x","x","x","x","x","x","x","x","x","x","x"]
["Customer Charge (non-IDR Metered)",null,"BAS001",3.26,"per month",34561,"2008-03-31","Not Scheduled","x"]
["Customer Charge (IDR Metered)",null,"BAS001",26.52,"per month",34561,"2008-03-31","Not Scheduled",null,"x"]
["Metering Charge",null,"BAS003",15.81,"per month",34561,"2008-03-31","Not Scheduled","x","x"]
["Transmission System Charge (non-IDR Metered)",null,"TRN001",1.286,"per NCP kW",34561,"2008-03-31","Not Scheduled","x"]
["Transmission System Charge (IDR Metered)",null,"TRN001",1.7929999999999999,"per 4CP kW",34561,"2008-03-31","Not Scheduled",null,"x"]
["Distribution System Charge",null,"DIS001",3.3140000000000001,"per NCP kW",34561,"2008-03-31","Not Scheduled","x","x"]
[]
["RIDER CHARGES",null,null,null,null,null,null,null,"x","x","x","x","x","x","x","x","x","x","x","x","x","x"]
["SBF (System Benefit Fund) ",null,"MSC024","0.000000","per kWh",46050,"2017-01-01","Revise 1/01/2017","x","x"]
["EECRF (Energy Efficiency Cost Recovery Factor)",null,"MSC041",3.7199999999999999E-4,"per kWh",48422,"2019-03-01","Revise 3/01/2020","x","x"]
["NDC (Nuclear Decommissioning Collections)",null,"MSC025",7.8790000000000006E-3,"per kW",49163,"2019-05-30","Not Scheduled"," "," "]
["AMSCRF","(Advanced Metering System Cost Recovery Fee)","MSC039",2.0499999999999998,"per month",36928,"2014-01-29","Revise 12/29/2020","x"]
["TCRF (Transmission Cost Recovery Factor)",null,null,null,null,null,null,null,"x","x","x","x","x","x","x","x","x","x","x","x","x","x"]
[null,"TCRF - IDR Metered","TRN002",2.484864,"per average 4CP kW",49580,"2019-09-01","Revise 9/01/2020",null,"x"]
[null,"TCRF - Non-IDR Metered","TRN002",2.1480600000000001,"per NCP kW",49580,"2019-09-01","Revise 9/01/2020","x"]
["TC-3 (Transition Charge-3)",null,null,null,null,null,null,null," "," "]
[null,"Commercial & Small Industrial - Energy","MSC037",8.0870000000000004E-3,"per kWh",49219,"2019-02-28","Revise 2/28/2020"]
[null,"Commercial & Small Industrial - Demand","MSC037",0.76452100000000001,"per kW",49219,"2019-02-28","Revise 2/28/2020"," "," "]
[null,"Municipal Water Pumping and Cotton Gin","MSC037",4.5560000000000002E-3,"per kWh",49219,"2019-02-28","Revise 2/28/2019"]
[null,"Standby Firm","MSC037",6.9686999999999999E-2,"per daily kW",49219,"2019-02-28","Revise 2/28/2020"]
["TC-2 (Transition Charge-2)",null,null,null,null,null,null,null," "," "," x","x","x","x","x","x","x","x","x","x","x","x"]
[null,"Commercial & Small Industrial - Energy","MSC036",1.9293999999999999E-2,"per kWh",49553,"2019-08-28","Revise 8/28/2020"]
[null,"Commercial & Small Industrial - Demand","MSC036",2.2800980000000002,"per kW",49553,"2019-08-28","Revise 8/28/2020"," "," "]
[null,"Municipal Water Pumping and Cotton Gin","MSC036",1.3931000000000001E-2,"per kWh",49553,"2019-08-28","Revise 8/28/2020"]
[null,"Standby Firm","MSC036",0.21875,"per daily kW",49553,"2019-08-28","Revise 8/28/2020"]
["DCRF-Distribution Cost Recovery Factor",null,null,null,null,null,null,null,"x","x","x","x","x","x","x","x","x","x","x","x","x","x"]
[null,"Commercial Energy with IDR","MSC042",0.45944000000000002,"per KW",48222,"2018-09-01","Not Scheduled"]
[null,"Commercial Demand with IDR","MSC042",0.45944000000000002,"per kW",48222,"2018-09-01","Not Scheduled","x","x"]
[null,"Municipal Water Pumping with IDR ","MSC042",0.45944000000000002,"per kW",48222,"2018-09-01","Not Scheduled"]
[null,"Commercial Demand TC/CTC (Machine billed-4CP","MSC042",0.45944000000000002,"per average 4CP kW",48222,"2018-09-01","Not Scheduled"]
["SRC - System Restoration Charge Factor",null,"MSC038",0.29741499999999998,"per kW",49308,"2019-09-18","Revised 9/18/2020"," "," "]
["ADIFIT- Accumulated Deferred Federal Income Tax Credit",null,"CRE031",-3.3987999999999997E-2,"per kW",49308,"2019-09-18","Revised 9/18/2020"," "," "]
["MSC - Merger Savings Credit",null,null,null,null,null,null,null,"x","x","x","x","x","x","x","x","x","x","x","x","x","x"]
[null,"MSC - IDR Metered","RRR008",0.19611400000000001,"per kW","2034-03-25","2019-08-28","Cr. Sept. 2019 Only",null,"x"]
[null,"MSC - Non IDR Metered","RRR008",0.22723199999999999,"per kW",49028,"2019-08-28","Cr. Sept. 2019 Only","x"]
[]
[]
[]
[]
[]
[]
[]
[]
[]
[]
[]
[]
[]
[]
[]
[]
[]
[]
[]
[]
[]
[]
[]
[null,null,null,null,null,null,null,null,"x","x","x","x","x","x","x","x","x","x","x","x","x","x"]

{"sheet":"Shary StreetLgt","index":8,"n_rows":22,"n_cols":12,"rows_kept":22,"cut":false,"hidden":false,"merged":[[5,8,5,11],[6,3,6,4],[7,3,7,4],[8,0,8,1],[0,0,0,1],[1,0,1,1],[2,0,2,1],[3,0,3,1]]}
["AEP Texas - Sharyland Area"]
[{"$f":"IF(A3=\"All Rate Codes\",\"Billing Determinants for\",\"Billing Determinants for Rate Code\")","v":"Billing Determinants for"}]
["All Rate Codes"]
[{"$f":"IF(A3=\"All Rate Codes\",\"\",VLOOKUP(A3,'SharyRate code Table'!A8:C202,3,FALSE))","v":""}]
["MUNICIPAL STREET LIGHTING SERVICE"]
[null,null,"810_02",null,null,null,null,"Estimated","Monthly Facilities Rate"]
[null,null,"SAC04","Approved Rate",null,"Docket","Effective","Revision or","Rate",null,"kWh","Facility"]
["Description of Charge or Rider",null,"Code","Cost / Unit",null,"Number","Date","Termination Date","Code","Description","Usage","Price"]
["BASE CHARGES",null,null,null,null,null,null,null,null,"Metal Halide (MH)"]
["Customer Charge",null,"BAS001",3.2,"per month",35093,"2008-01-30","Not Scheduled",993,"MH 175 Watt ",75,6.7]
["Monthly Facilities Charge ",null,null,null,null,null,null,null,994,"MH 400 Watt ",155,7.27]
[null,{"$f":"IF(A$3=\"All Rate Codes\",\"(varies by light type - See table to right)\",VLOOKUP(A$3,I$9:L$68,2,FALSE))","v":"(varies by light type - See table to right)"},"ODL003",{"$f":"IF(A$3=\"All Rate Codes\",\"See Table\",VLOOKUP(A$3,I$9:L$68,4,FALSE))","v":"See Table"},"per month per light",35093,"2008-01-30","Not Scheduled",null,"High Pressure Sodium (HPS)"]
[null,"kWh usage per light",null,{"$f":"IF(A$3=\"All Rate Codes\",\" See Table\",VLOOKUP(A$3,I$9:L$68,3,FALSE))","v":" See Table"},"kWh per month per light",null,null,null,990,"HPS 150 Watt ",70,4.33]
["Transmission System Charge  ",null,"TRN001",2.5119999999999999E-3,"per kWh",35093,"2008-01-30","Not Scheduled",991,"HPS 250 Watt ",105,6.06]
["Distribution System Charge     ",null,"DIS001",1.5488999999999999E-2,"per kWh",35093,"2008-01-30","Not Scheduled",992,"HPS 400 Watt ",165,6.57]
[]
["RIDER CHARGES"]
["SBF (System Benefit Fund)",null,"MSC024","0.000000","per kWh",35093,"2013-09-01","Revise 9/1/13"]
["TCRF (Transmission Cost Recovery Factor)",null,"TRN002",4.7739999999999996E-3,"per kWh",49580,"2019-09-01","Revise 9/01/2020"]
["DCRF-Distribution Cost Recovery Factor"]
[null,"Municipal Street Lighting Service","MSC042",5.7959999999999999E-3,"per kWh",32475,"2018-09-01","Not Scheduled"]
["MSC - Merger Savings Credit",null,"RRR008",-3.0049999999999999E-3,"per kWh",49028,"2019-08-28","Cr. Sept. 2019 Only"]

{"sheet":"TCCResidential","index":9,"n_rows":68,"n_cols":13,"rows_kept":68,"cut":false,"hidden":false,"merged":[[0,0,0,1],[6,8,6,12],[8,0,8,1],[6,3,6,4],[7,3,7,4],[3,0,3,1],[1,0,1,1],[2,0,2,1]]}
["AEP Texas - Central Area"]
[{"$f":"IF(A3=\"All Rate Codes\",\"Billing Determinants for\",\"Billing Determinants for Rate Code\")","v":"Billing Determinants for"}]
["All Rate Codes"]
[{"$f":"IF(A3=\"All Rate Codes\",\"\",VLOOKUP(A3,'TCCRate code Table'!A8:C202,3,FALSE))","v":""}]
["RESIDENTIAL  SERVICE"]
[null,null,"810_02",null,null,null,null,"Estimated"]
[null,null,"SAC04","Approved Rate",null,"Docket","Effective","Revision or","Applicable Rate Codes"]
[".",null,"Code","Cost / Unit",null," Number","Date","Termination Date",820]
["BASE CHARGES",null,null,null,null,null,null,null,"x","x","x","x","x"]
["Customer Charge",null,"BAS001",3.19,"per month",35093,"2008-01-30","Not Scheduled","x"]
["Metering Charge",null,"BAS003",3.55,"per month",35093,"2008-01-30","Not Scheduled","x"]
["Transmission System Charge",null,"TRN001",5.1900000000000002E-3,"per kWh",35093,"2008-01-30","Not Scheduled","x"]
["Distribution System Charge",null,"DIS001",1.3915E-2,"per kWh",35093,"2008-01-30","Not Scheduled","x"]
[]
["RIDER CHARGES",null,null,null,null,null,null,null,"x","x","x","x","x"]
["SBF (System Benefit Fund)",null,"MSC024","0.000000","per kWh",46050,"2017-01-01","Revise 1/01/2017","x"]
["EECRF (Energy Efficiency Cost Recovery Factor)",null,"MSC041",5.5400000000000002E-4,"per kWh",48422,"2019-03-01","Revise 3/01/2020","x"]
["NDC (Nuclear Decommissioning Collections)",null,"MSC025",2.8E-5,"per kWh",49163,"2019-05-30","Not Scheduled","x"]
["AMSCRF (Advanced Metering System Cost Recovery Fee)",null,"MSC039",2.2599999999999998,"per month",36928,"2014-01-29","Revise 12/29/2020","x"]
["TCRF (Transmission Cost Recovery Factor) ",null,"TRN002",1.0026999999999999E-2,"per kWh",49580,"2019-09-01","Revise 9/01/2020","x"]
["TC-3 (Transition Charge - 3)",null,"MSC037",2.8969999999999998E-3,"per kWh",49219,"2019-02-28","Revised 2/28/2020","x"]
["TC-2 (Transition Charge - 2)",null,"MSC036",8.8159999999999992E-3,"per kWh",49553,"2019-08-28","Revise 8/28/2020","x"]
["DCRF-Distribution Cost Recovery Factor",null,"MSC042",2.1580000000000002E-3,"per KWh",48222,"2018-09-01","Not Scheduled","x"]
["SRC - System Restoration Charge Factor",null,"MSC038",1.4549999999999999E-3,"per KWh",49308,"2019-09-18","Revise 9/18/2020","x"]
["ADIFIT- Accumulated Deferred Federal Income Tax Credit",null,"CRE031",-1.66E-4,"per KWh",49308,"2019-09-18","Revise 9/18/2020","x"]
["MSC - Merger Savings Credit",null,"RRR008",-9.2900000000000003E-4,"per KWh",49028,"2019-08-28","Cr.Sept. 2019 Only","x"]
[]
[]
[]
[]
[]
[]
[]
[]
[]
[]
[]
[]
[]
[]
[]
[]
[]
[]
[]
[]
[]
[]
[]
[]
[]
[]
[]
[]
[]
[]
[]
[]
[]
[]
[]
[]
[]
[]
[]
[]
[]
[null,null,null,null,null,null,null,null,"x","x","x","x","x"]

{"sheet":"TCCSec<10KW","index":10,"n_rows":67,"n_cols":17,"rows_kept":67,"cut":false,"hidden":false,"merged":[[6,8,6,14],[8,0,8,1],[6,3,6,4],[7,3,7,4],[0,0,0,1],[1,0,1,1],[2,0,2,1],[3,0,3,1]]}
["AEP Texas - Central Area"]
[{"$f":"IF(A3=\"All Rate Codes\",\"Billing Determinants for\",\"Billing Determinants for Rate Code\")","v":"Billing Determinants for"}]
["All Rate Codes"]
[{"$f":"IF(A3=\"All Rate Codes\",\"\",VLOOKUP(A3,'TCCRate code Table'!A8:C202,3,FALSE))","v":""}]
["SECONDARY VOLTAGE SERVICE LESS THAN OR EQUAL TO 10 KW"]
[null,null,"810_02",null,null,null,null,"Estimated"]
[null,null,"SAC04","Approved Rate",null,"Docket","Effective","Revision or","Applicable Rate Codes"]
["Description of Charge or Rider",null,"Code","Cost / Unit",null," Number","Date","Termination Date",826,827,828,829,850,851,852]
["BASE CHARGES",null,null,null,null,null,null,null,"x","x","x","x","x","x","x","X","X"]
["Customer Charge",null,"BAS001",3.2,"per month",35093,"2008-01-30","Not Scheduled","x","x","x","x","x","x","x"]
["Metering Charge",null,"BAS003",3.68,"per month",35093,"2008-01-30","Not Scheduled","x","x","x","x"]
["Transmission System Charge  ",null,"TRN001",2.5119999999999999E-3,"per kWh",35093,"2008-01-30","Not Scheduled","x","x","x","x","x","x","x"]
["Distribution System Charge     ",null,"DIS001",1.5488999999999999E-2,"per kWh",35093,"2008-01-30","Not Scheduled","x","x","x","x","x","x","x"]
[]
["RIDER CHARGES",null,null,null,null,null,null,null,"x","x","x","x","x","x","x","X","X"]
["SBF (System Benefit Fund)",null,"MSC024","0.000000","per kWh",46050,"2017-01-01","Revise 1/01/2017","x","x","x","x","x","x","x"]
["EECRF (Energy Efficiency Cost Recovery Factor)",null,"MSC041",1.1900000000000001E-4,"per kWh",48422,"2019-03-01","Revise 3/01/2020","x","x","x","x","x","x","x"]
["NDC (Nuclear Decommissioning Collections)",null,"MSC025",3.4999999999999997E-5,"per kWh",49163,"2019-05-30","Not Scheduled","x","x","x","x","x","x","x"]
["TCRF (Transmission Cost Recovery Factor)",null,"TRN002",4.7739999999999996E-3,"per kWh",49580,"2019-09-01","Revise 9/01/2020","x","x","x","x","x","x","x"]
["AMSCRF","(Advanced Metering System Cost Recovery Factor)","MSC039",4.17,"per month",36928,"2014-01-29","Revise 12/29/2020","x","x","x","x","x","x","x"]
["TC-3 (Transition Charge - 3)",null,null,null,null,null,null,null,"x","x","x","x","x","x","x"]
[null,"Commercial & Small Industrial - Energy","MSC037",8.0870000000000004E-3,"per kWh",49219,"2019-02-28","Revise 2/28/2020","x",null,null,"x","x",null,"x"]
[null,"Commercial & Small Industrial - Demand","MSC037",0.76452100000000001,"per kW",49219,"2019-02-28","Revise 2/28/2020",null,"x"]
[null,"Municipal Water Pumping and Cotton Gin","MSC037",4.5560000000000002E-3,"per kWh",49219,"2019-02-28","Revise 2/28/2020",null,null,"x",null,null,"x",null,"X","X"]
["TC-2 (Transition Charge - 2)",null,null,null,null,null,null,null,"x","x","x","x","x","x","x"]
[null,"Commercial & Small Industrial - Energy","MSC036",1.9293999999999999E-2,"per kWh",49553,"2019-08-28","Revise 8/28/2020","x",null,null,"x","x",null,"x"]
[null,"Commercial & Small Industrial - Demand","MSC036",2.3785289999999999,"per kW",48394,"2018-08-28","Revise 8/28/2019",null,"x"]
[null,"Municipal Water Pumping and Cotton Gin","MSC036",1.3931000000000001E-2,"per kWh",49553,"2019-08-28","Revise 8/28/2020",null,null,"x",null,null,"x",null,"X","X"]
["DCRF-Distribution Cost Recovery Factor",null,null,null,null,null,null,null,"x","x","x","x","x","x","x"]
[null,"Commercial & Small Industrial- Energy","MSC042",5.7959999999999999E-3,"per kWh",48222,"2018-09-01","Not Scheduled","x",null,null,"x","x",null,"x"]
[null,"Commercial & Small Industrial- Non IDR Kw","MSC042",5.7959999999999999E-3,"per KW",48222,"2018-09-01","Revise 9-01-2019",null,"x"]
[null,"Secondary Service Less Than or Equal to 10 Kw","MSC042",5.7959999999999999E-3,"per kWh",48222,"2018-09-01","Revise 9-01/2019",null,null,"x",null,null,"x"]
["SRC - System Restoration Charge Factor",null,"MSC038",1.7979999999999999E-3,"per kWh",49308,"2019-09-18","Revise 9/18/2020","x","x","x","x","x","x","x"]
["ADIFIT- Accumulated Deferred Federal Income Tax Credit",null,"CRE031",-2.05E-4,"per kWh",49308,"2019-09-18","Revise 9/18/2020","x","x","x","x","x","x","x"]
["MSC - Merger Savings Credit",null,"RRR008",-1.281E-3,"per kWh",49028,"2019-08-28","Cr. Sept.2019 Only","x","x","x","x","x","x","x"]
[]
[]
[]
[]
[]
[]
[]
[]
[]
[]
[]
[]
[]
[]
[]
[]
[]
[]
[]
[]
[]
[]
[]
[]
[]
[]
[]
[]
[]
[]
[]
[null,null,null,null,null,null,null,null,"x","x","x","x","x","x","x"]

{"sheet":"TCCSec>=10KW","index":11,"n_rows":68,"n_cols":22,"rows_kept":68,"cut":false,"hidden":false,"merged":[[6,8,6,21],[8,0,8,1],[6,3,6,4],[7,3,7,4],[0,0,0,1],[1,0,1,1],[2,0,2,1],[3,0,3,1]]}
["AEP Texas - Central Area"]
[{"$f":"IF(A3=\"All Rate Codes\",\"Billing Determinants for\",\"Billing Determinants for Rate Code\")","v":"Billing Determinants for"}]
["All Rate Codes"]
[{"$f":"IF(A3=\"All Rate Codes\",\"\",VLOOKUP(A3,'TCCRate code Table'!A8:C202,3,FALSE))","v":""}]
["SECONDARY VOLTAGE SERVICE GREATER THAN 10 KW"]
[null,null,"810_02",null,null,null,null,"Estimated Next"]
[null,null,"SAC04","Approved Rate",null,"Docket","Effective","Revision or","Applicable Rate Codes"]
["Description of Charge or Rider",null,"Code","Cost / Unit",null,"Number","Date","Termination Date",830,831,833,834,835,836,837,838,839,853,855,856,857,858]
["BASE CHARGES",null,null,null,null,null,null,null,"x","x","x","x","x","x","x","x","x","x","x","x","x","x"]
["Customer Charge (non-IDR Metered)",null,"BAS001",3.26,"per month",34561,"2008-03-31","Not Scheduled","x","x","x",null,null,"x",null,"x",null,null,"x",null,"x"]
["Customer Charge (IDR Metered)",null,"BAS001",26.52,"per month",34561,"2008-03-31","Not Scheduled",null,null,null,"x","x",null,"x",null,"x","x",null,"x",null,"x"]
["Metering Charge",null,"BAS003",15.81,"per month",34561,"2008-03-31","Not Scheduled","x","x","x","x","x","x","x","x","x","x","x","x","x","x"]
["Transmission System Charge (non-IDR Metered)",null,"TRN001",1.286,"per NCP kW",34561,"2008-03-31","Not Scheduled","x","x","x",null,null,"x",null,"x",null,null,"x",null,"x"]
["Transmission System Charge (IDR Metered)",null,"TRN001",1.7929999999999999,"per 4CP kW",34561,"2008-03-31","Not Scheduled",null,null,null,"x","x",null,"x",null,"x","x",null,"x",null,"x"]
["Distribution System Charge",null,"DIS001",3.3140000000000001,"per NCP kW",34561,"2008-03-31","Not Scheduled","x","x","x","x","x","x","x","x","x","x","x","x","x","x"]
[]
["RIDER CHARGES",null,null,null,null,null,null,null,"x","x","x","x","x","x","x","x","x","x","x","x","x","x"]
["SBF (System Benefit Fund) ",null,"MSC024","0.000000","per kWh",46050,"2017-01-01","Revise 1/01/2017","x","x","x","x","x","x","x","x","x","x","x","x","x","x"]
["EECRF (Energy Efficiency Cost Recovery Factor)",null,"MSC041",3.7199999999999999E-4,"per kWh",48422,"2019-03-01","Revise 3/01/2020","x","x","x","x","x","x","x","x","x","x","x","x","x","x"]
["NDC (Nuclear Decommissioning Collections)",null,"MSC025",7.8790000000000006E-3,"per kW",49163,"2019-05-30","Not Scheduled","x","x","x","x","x","x","x","x","x","x","x","x","x","x"]
["AMSCRF","(Advanced Metering System Cost Recovery Fee)","MSC039",2.0499999999999998,"per month",36928,"2014-01-29","Revise 12/29/2020","x","x","x",null,null,"x",null,"x",null,null,"x",null,"x"]
["TCRF (Transmission Cost Recovery Factor)",null,null,null,null,null,null,null,"x","x","x","x","x","x","x","x","x","x","x","x","x","x"]
[null,"TCRF - IDR Metered","TRN002",2.484864,"per average 4CP kW",49580,"2019-09-01","Revise 9/01/2020",null,null,null,"x","x",null,"x",null,"x","x",null,"x",null,"x"]
[null,"TCRF - Non-IDR Metered","TRN002",2.1480600000000001,"per NCP kW",49580,"2019-09-01","Revise 9/01/2020","x","x","x",null,null,"x",null,"x",null,null,"x",null,"x"]
["TC-3 (Transition Charge-3)",null,null,null,null,null,null,null,"x","x","x","x","x","x","x","x","x","x","x","x","x","x"]
[null,"Commercial & Small Industrial - Energy","MSC037",8.0870000000000004E-3,"per kWh",49219,"2019-02-28","Revise 2/28/2020","x",null,null,null,null,null,null,"x","x",null,"x","x"]
[null,"Commercial & Small Industrial - Demand","MSC037",0.76452100000000001,"per kW",49219,"2019-02-28","Revise 2/28/2020",null,null,null,null,null,"x","x",null,null,null,null,null,"x","x"]
[null,"Municipal Water Pumping and Cotton Gin","MSC037",4.5560000000000002E-3,"per kWh",49219,"2019-02-28","Revise 2/28/2019",null,"x","x","x","x"]
[null,"Standby Firm","MSC037",6.9686999999999999E-2,"per daily kW",49219,"2019-02-28","Revise 2/28/2020",null,null,null,null,null,null,null,null,null,"x"]
["TC-2 (Transition Charge-2)",null,null,null,null,null,null,null,"x","x","x","x","x","x","x","x","x","x","x","x","x","x"]
[null,"Commercial & Small Industrial - Energy","MSC036",1.9293999999999999E-2,"per kWh",49553,"2019-08-28","Revise 8/28/2020","x",null,null,null,null,null,null,"x","x",null,"x","x"]
[null,"Commercial & Small Industrial - Demand","MSC036",2.2800980000000002,"per kW",49553,"2019-08-28","Revise 8/28/2020",null,null,null,null,null,"x","x",null,null,null,null,null,"x","x"]
[null,"Municipal Water Pumping and Cotton Gin","MSC036",1.3931000000000001E-2,"per kWh",49553,"2019-08-28","Revise 8/28/2020",null,"x","x","x","x"]
[null,"Standby Firm","MSC036",0.21875,"per daily kW",49553,"2019-08-28","Revise 8/28/2020",null,null,null,null,null,null,null,null,null,"x"]
["DCRF-Distribution Cost Recovery Factor",null,null,null,null,null,null,null,"x","x","x","x","x","x","x","x","x","x","x","x","x","x"]
[null,"Commercial Energy with IDR","MSC042",0.45944000000000002,"per KW",48222,"2018-09-01","Not Scheduled","x",null,null,null,null,null,null,"x","x",null,"x","x"]
[null,"Commercial Demand with IDR","MSC042",0.45944000000000002,"per kW",48222,"2018-09-01","Not Scheduled",null,null,null,null,null,"x","x",null,null,null,null,null,"x","x"]
[null,"Municipal Water Pumping with IDR ","MSC042",0.45944000000000002,"per kW",48222,"2018-09-01","Not Scheduled",null,"x","x","x","x"]
[null,"Commercial Demand TC/CTC (Machine billed-4CP","MSC042",0.45944000000000002,"per average 4CP kW",48222,"2018-09-01","Not Scheduled",null,null,null,null,null,null,null,null,null,"x"]
["SRC - System Restoration Charge Factor",null,"MSC038",0.29741499999999998,"per kW",49308,"2019-09-18","Revised 9/18/2020","x","x","x","x","x","x","x","x","x","x","x","x","x","x"]
["ADIFIT- Accumulated Deferred Federal Income Tax Credit",null,"CRE031",-3.3987999999999997E-2,"per kW",49308,"2019-09-18","Revised 9/18/2020","x","x","x","x","x","x","x","x","x","x","x","x","x","x"]
["MSC - Merger Savings Credit",null,null,null,null,null,null,null,"x","x","x","x","x","x","x","x","x","x","x","x","x","x"]
[null,"MSC - IDR Metered","RRR008",0.19611400000000001,"per kW","2034-03-25","2019-08-28","Cr. Sept. 2019 Only",null,null,null,"x","x",null,"x",null,"x","x",null,"x",null,"x"]
[null,"MSC - Non IDR Metered","RRR008",0.22723199999999999,"per kW",49028,"2019-08-28","Cr. Sept. 2019 Only","x","x","x",null,null,"x",null,"x",null,null,"x",null,"x"]
[]
[]
[]
[]
[]
[]
[]
[]
[]
[]
[]
[]
[]
[]
[]
[]
[]
[]
[]
[]
[]
[]
[]
[null,null,null,null,null,null,null,null,"x","x","x","x","x","x","x","x","x","x","x","x","x","x"]

{"sheet":"TCCPrimary","index":12,"n_rows":68,"n_cols":16,"rows_kept":68,"cut":false,"hidden":false,"merged":[[6,8,6,15],[8,0,8,1],[6,3,6,4],[7,3,7,4],[0,0,0,1],[1,0,1,1],[2,0,2,1],[3,0,3,1]]}
["AEP Texas - Central Area"]
[{"$f":"IF(A3=\"All Rate Codes\",\"Billing Determinants for\",\"Billing Determinants for Rate Code\")","v":"Billing Determinants for"}]
["All Rate Codes"]
[{"$f":"IF(A3=\"All Rate Codes\",\"\",VLOOKUP(A3,'TCCRate code Table'!A8:C202,3,FALSE))","v":""}]
["PRIMARY VOLTAGE SERVICE"]
[null,null,"810_02",null,null,null,null,"Estimated"]
[null,null,"SAC04","Approved Rate",null,"Docket","Effective","Revision or","Applicable Rate Codes"]
["Description of Charge or Rider",null,"Code","Cost / Unit",null,"Number","Date","Termination Date",841,842,844,845,846,847,848,849]
["BASE CHARGES",null,null,null,null,null,null,null,"x","x","x","x","x","x","x","x"]
["Customer Charge (non-IDR Metered)",null,"BAS001",3.8,"per month",34561,"2008-03-31","Not Scheduled","x",null,"x",null,"x",null,"x"]
["Customer Charge (IDR Metered)",null,"BAS001",28.41,"per month",34561,"2008-03-31","Not Scheduled",null,"x",null,"x",null,"x",null,"x"]
["Metering Charge ",null,"BAS003",154.62,"per month",34561,"2008-03-31","Not Scheduled","x","x","x","x","x","x","x","x"]
["Transmission System Charge (non-IDR Metered)",null,"TRN001",1.6279999999999999,"per NCP kW",34561,"2008-03-31","Not Scheduled","x",null,"x",null,"x",null,"x"]
["Transmission System Charge (IDR Metered)",null,"TRN001",1.925,"per 4CP kW",34561,"2008-03-31","Not Scheduled",null,"x",null,"x",null,"x",null,"x"]
["Distribution System Charge ",null,"DIS001",2.9449999999999998,"per NCP kW",34561,"2008-03-31","Not Scheduled","x","x","x","x","x","x","x","x"]
[]
["RIDER CHARGES",null,null,null,null,null,null,null,"x","x","x","x","x","x","x","x"]
["SBF (System Benefit Fund) ",null,"MSC024","0.000000","per kWh",46050,"2017-01-01","Revise 1/01/2017","x","x","x","x","x","x","x","x"]
["EECRF (Energy Efficiency Cost Recovery Factor)",null,"MSC041",4.37E-4,"per kWh",48422,"2019-03-01","Revise 3/01/2020","x","x","x","x","x","x","x","x"]
["AMSCRF","(Advanced Metering System Cost Recovery Fee)","MSC039",-7.07,"per month",36928,"2014-01-29","Revise 12/29/2020","x",null,"x",null,"x",null,"x"]
["NDC (Nuclear Decommissioning Collections)",null,"MSC025",1.1525000000000001E-2,"per kW",49163,"2019-05-30","Not Scheduled","x","x","x","x","x","x","x","x"]
["TCRF (Transmission Cost Recovery Factor)",null,null,null,null,null,null,null,"x","x","x","x","x","x","x","x"]
[null,"IDR Metered","TRN002",3.8679860000000001,"per 4CP kW",49580,"2019-09-01","Revise 9/01/2020",null,"x",null,"x",null,"x",null,"x"]
[null,"Non-IDR Metered","TRN002",3.3777020000000002,"per kW",49580,"2019-09-01","Revise 9/01/2020","x",null,"x",null,"x",null,"x"]
["TC-3 (Transition Charge-3)",null,null,null,null,null,null,null,"x","x","x","x","x","x","x","x"]
[null,"Commercial & Small Industrial - Energy","MSC037",8.0870000000000004E-3,"per kWh",49219,"2019-02-28","Revise 2/28/2020",null,null,"x","x"]
[null,"Commercial & Small Industrial - Demand","MSC037",0.76452100000000001,"per kW",49219,"2019-02-28","Revise 2/28/2020","x","x",null,null,"x","x"]
[null,"Municipal Water Pumping and Cotton Gin","MSC037",4.5560000000000002E-3,"per kWh",49219,"2019-02-28","Revise 2/28/2020",null,null,null,null,null,null,"x","x"]
["TC-2 (Transition Charge-2)",null,null,null,null,null,null,null,"x","x","x","x","x","x","x","x"]
[null,"Commercial & Small Industrial - Energy","MSC036",1.9293999999999999E-2,"per kWh",49553,"2019-08-28","Revise 8/28/2020",null,null,"x","x"]
[null,"Commercial & Small Industrial - Demand","MSC036",2.2800980000000002,"per kW",49553,"2019-08-28","Revise 8/28/2020","x","x",null,null,"x","x"]
[null,"Municipal Water Pumping and Cotton Gin","MSC036",1.3931000000000001E-2,"per kWh",49553,"2019-08-28","Revise 8/28/2020",null,null,null,null,null,null,"x","x"]
["DCRF-Distribution Cost Recovery Factor",null,null,null,null,null,null,null,"x","x","x","x","x","x","x","x"]
[null,"Irrigation with IDR","MSC042",0.36461900000000003,"per kW",48222,"2018-09-01","Revise 9-01-2019",null,null,"x","x"]
[null,"Seasonal Ag with IDR","MSC042",0.36461900000000003,"per kW",48222,"2018-09-01","Not Scheduled","x","x",null,null,"x","x"]
[null,"Municipal Water Pumping with IDR","MSC042",0.36461900000000003,"per kW",48222,"2018-09-01","Not Scheduled",null,null,null,null,null,null,"x","x"]
["SRC - System Restoration Charge Factor",null,"MSC038",0.238983,"per kW",49308,"2019-09-18","Revised 9/18/2020","x","x","x","x","x","x","x","x"]
["ADIFIT- Accumulated Deferred Federal Income Tax Credit",null,"CRE031",-2.7310999999999998E-2,"per kW",49308,"2019-09-18","Revised 9/18/2020","x","x","x","x","x","x","x","x"]
["MSC - Merger Savings Credit",null,null,null,null,null,null,null,"x","x","x","x","x","x","x","x"]
[null,"MSC - IDR Metered","RRR008",-0.201489,"per kW",49028,"2019-08-28","Cr. Sept.2019 Only",null,"x",null,"x",null,"x",null,"x"]
[null,"MSC - Non IDR Metered","RRR008",-0.22439100000000001,"per kW",49028,"2019-08-28","Cr. Sept.2019 Only","x",null,"x",null,"x",null,"x"]
[]
[]
[]
[]
[]
[]
[]
[]
[]
[]
[]
[]
[]
[]
[]
[]
[]
[]
[]
[]
[]
[]
[]
[]
[]
[]
[null,null,null,null,null,null,null,null,"x","x","x","x","x","x","x","x"]

{"sheet":"TCCTrans","index":13,"n_rows":16,"n_cols":19,"rows_kept":16,"cut":false,"hidden":false,"merged":[[6,8,6,18],[7,3,7,4],[8,0,8,1],[6,3,6,4],[0,0,0,1],[1,0,1,1],[2,0,2,1],[3,0,3,1]]}
["AEP Texas - Central Area"]
[{"$f":"IF(A3=\"All Rate Codes\",\"Billing Determinants for\",\"Billing Determinants for Rate Code\")","v":"Billing Determinants for"}]
["All Rate Codes"]
[{"$f":"IF(A3=\"All Rate Codes\",\"\",VLOOKUP(A3,'TCCRate code Table'!A8:C202,3,FALSE))","v":""}]
["TRANSMISSION VOLTAGE SERVICE"]
[null,null,"810_02",null,null,null,null,"Estimated"]
[null,null,"SAC04","Approved Rate",null,"Docket","Effective","Revision or","Applicable Rate Codes"]
["Description of Charge or Rider",null,"Code","Cost / Unit",null,"Number","Date","Termination Date",860,863,864,865,866,870,871,872,873,874,875]
[null,null,null,null,null,null,null,null,"X","X","X","X","X","X","X","X","X","X","X"]
[null,null,null,null,null,null,null,null,"X","X","X","X","X","X","X","X","X","X","X"]
[null,"Contact your AEP CRR Account Manager for details associated with this rate",null,null,null,null,null,null,"X","X","X","X","X","X","X","X","X","X","X"]
[null,null,null,null,null,null,null,null,"X","X","X","X","X","X","X","X","X","X","X"]
[null,null,null,null,null,null,null,null,"X","X","X","X","X","X","X","X","X","X","X"]
[null,null,null,null,null,null,null,null,"X","X","X","X","X","X","X","X","X","X","X"]
[null,null,null,null,null,null,null,null,"X","X","X","X","X","X","X","X","X","X","X"]
[null,null,null,null,null,null,null,null,"X","X","X","X","X","X","X","X","X","X","X"]

{"sheet":"TCC StreetLgt","index":14,"n_rows":38,"n_cols":12,"rows_kept":38,"cut":false,"hidden":false,"merged":[[5,8,5,11],[8,0,8,1],[6,3,6,4],[7,3,7,4],[0,0,0,1],[1,0,1,1],[2,0,2,1],[3,0,3,1]]}
["AEP Texas - Central Area"]
[{"$f":"IF(A3=\"All Rate Codes\",\"Billing Determinants for\",\"Billing Determinants for Rate Code\")","v":"Billing Determinants for"}]
["All Rate Codes"]
[{"$f":"IF(A3=\"All Rate Codes\",\"\",VLOOKUP(A3,'TCCRate code Table'!A8:C202,3,FALSE))","v":""}]
["MUNICIPAL STREET LIGHTING SERVICE"]
[null,null,"810_02",null,null,null,null,"Estimated","Monthly Facilities Rate"]
[null,null,"SAC04","Approved Rate",null,"Docket","Effective","Revision or","Rate",null,"kWh","Facility"]
["Description of Charge or Rider",null,"Code","Cost / Unit",null,"Number","Date","Termination Date","Code","Description","Usage","Price"]
["BASE CHARGES",null,null,null,null,null,null,null,null,"Mercury Vapor (MV)"]
["Customer Charge",null,"BAS001",3.2,"per month",35093,"2008-01-30","Not Scheduled",931,"MV 100 Watt ",40,4.0999999999999996]
["Monthly Facilities Charge ",null,null,null,null,null,null,null,932,"MV 175 Watt ",75,4.6399999999999997]
[null,{"$f":"IF(A$3=\"All Rate Codes\",\"(varies by light type - See table to right)\",VLOOKUP(A$3,I$9:L$68,2,FALSE))","v":"(varies by light type - See table to right)"},"ODL003",{"$f":"IF(A$3=\"All Rate Codes\",\"See Table\",VLOOKUP(A$3,I$9:L$68,4,FALSE))","v":"See Table"},"per month per light",35093,"2008-01-30","Not Scheduled",933,"MV 250 Watt ",100,6.35]
[null,"kWh usage per light",null,{"$f":"IF(A$3=\"All Rate Codes\",\" See Table\",VLOOKUP(A$3,I$9:L$68,3,FALSE))","v":" See Table"},"kWh per month per light",null,null,null,935,"MV 400 Watt ",145,7.61]
["Transmission System Charge  ",null,"TRN001",2.5119999999999999E-3,"per kWh",35093,"2008-01-30","Not Scheduled",937,"MV 1000 Watt ",365,10.71]
["Distribution System Charge     ",null,"DIS001",1.5488999999999999E-2,"per kWh",35093,"2008-01-30","Not Scheduled",938,"Twin MV 400 Watt ",290,11.78]
[null,null,null,null,null,null,null,null,null,"Metal Halide (MH)"]
["RIDER CHARGES",null,null,null,null,null,null,null,959,"MH 150 Watt ",65,6.7]
["SBF (System Benefit Fund)",null,"MSC024","0.000000","per kWh",35093,"2013-09-01","Revise 9/1/13",960,"MH 175 Watt ",75,6.7]
["NDC (Nuclear Decommissioning Collections)",null,"MSC025",3.4999999999999997E-5,"per kWh",49163,"2019-05-30","Not Scheduled",961,"MH 250 Watt ",105,6.9]
["TCRF (Transmission Cost Recovery Factor)",null,"TRN002",4.7739999999999996E-3,"per kWh",49580,"2019-09-01","Revise 9/01/2020",962,"MH 400 Watt ",155,7.27]
["TC-3 (Transition Charge-3)",null,null,null,null,null,null,null,964,"Twin MH 250 Watt ",210,11.04]
[null,"Municipal Water Pumping and Cotton Gin","MSC037",4.5560000000000002E-3,"per kWh",49219,"2019-02-28","Revise 2/28/2020",965,"Twin MH 400 Watt ",310,11.66]
["TC-2 (Transition Charge-2)",null,null,null,null,null,null,null,966,"MH 1000 Watt",367,8.67]
[null,"Municipal Water Pumping and Cotton Gin","MSC036",1.3931000000000001E-2,"per kWh",49553,"2019-08-28","Revise 8/28/2020",null,"High Pressure Sodium (HPS)"]
["DCRF-Distribution Cost Recovery Factor",null,null,null,null,null,null,null,944,"HPS 70 Watt ",35,4.12]
[null,"Municipal Street Lighting Service","MSC042",5.7959999999999999E-3,"per kWh",32475,"2018-09-01","Not Scheduled",945,"HPS 100 Watt ",39,4.21]
["SRC - System Restoration Charge Factor",null,"MSC038",8.2150000000000001E-3,"per kWh",49308,"2019-09-18","Revise 9/18/2020",946,"HPS 150 Watt ",70,4.33]
["ADIFIT- Accumulated Deferred Federal Income Tax Credit",null,"CRE031",-9.3899999999999995E-4,"per kWh",49308,"2019-09-18","Revise 9/18/2020",947,"HPS 250 Watt ",105,6.06]
["MSC - Merger Savings Credit",null,"RRR008",-3.0049999999999999E-3,"per kWh",49028,"2019-08-28","Cr. Sept. 2019 Only",949,"HPS 400 Watt ",165,6.57]
[null,null,null,null,null,null,null,null,952,"Twin HPS 150 Watt ",140,6.4]
[null,null,null,null,null,null,null,null,953,"Twin HPS 250 Watt ",210,9.86]
[null,null,null,null,null,null,null,null,954,"Twin HPS 400 Watt ",330,10.86]
[null,null,null,null,null,null,null,null,955,"HPS 1000 Watt",367,5.55]
[null,null,null,null,null,null,null,null,null,"Select Cities Only"]
[null,null,null,null,null,null,null,null,975,"MH 400 Watt Select Cities",155,11.39]
[null,null,null,null,null,null,null,null,976,"MH 175 Watt Post Top - Select Cities",75,19.2]
[null,null,null,null,null,null,null,null,977,"HPS 100 Watt Post Top - Select Cities",39,18.600000000000001]
[null,null,null,null,null,null,null,null,978,"MH 150 Watt  Post Top - Select Cities",65,19.2]

{"sheet":"TCC NonRoadway","index":15,"n_rows":32,"n_cols":12,"rows_kept":32,"cut":false,"hidden":false,"merged":[[5,8,5,11],[8,0,8,1],[6,3,6,4],[7,3,7,4],[0,0,0,1],[1,0,1,1],[2,0,2,1],[3,0,3,1]]}
["AEP Texas - Central Area"]
[{"$f":"IF(A3=\"All Rate Codes\",\"Billing Determinants for\",\"Billing Determinants for Rate Code\")","v":"Billing Determinants for"}]
["All Rate Codes"]
[{"$f":"IF(A3=\"All Rate Codes\",\"\",VLOOKUP(A3,'TCCRate code Table'!A8:C202,3,FALSE))","v":""}]
["NON-ROADWAY LIGHTING SERVICE"]
[null,null,"810_02",null,null,null,null,"Estimated","Monthly Facilities Rate"]
[null,null,"SAC04","Approved Rate",null,"Docket ","Effective","Revision or","Rate",null,"kWh","Facility"]
["Description of Charge or Rider",null,"Code","Cost / Unit",null,"Number","Date","Termination Date","Code","Description","Usage","Price"]
["BASE CHARGES",null,null,null,null,null,null,null,"Security Lighting"]
[null,null,null,null,null,null,null,null,null,"Mercury Vapor (MV)"]
["Monthly Facilities Charge ",null,null,null,null,null,null,null,901,"MV 175 Watt Security Light",75,3.17]
[null,{"$f":"IF(A$3=\"All Rate Codes\",\"(varies by light type - See table to right)\",VLOOKUP(A$3,I$9:L$68,2,FALSE))","v":"(varies by light type - See table to right)"},"ODL005",{"$f":"IF(A$3=\"All Rate Codes\",\"See Table\",VLOOKUP(A$3,I$9:L$68,4,FALSE))","v":"See Table"},"per month per light",35093,"2008-01-30","Not Scheduled",902,"MV 400 Watt Security Light",145,3.91]
[null,"kWh usage per light",null,{"$f":"IF(A$3=\"All Rate Codes\",\" See Table\",VLOOKUP(A$3,I$9:L$68,3,FALSE))","v":" See Table"},"kWh per month per light",null,null,null,null,"High Pressure Sodium (HPS)"]
["Transmission System Charge  ",null,"TRN001",2.5119999999999999E-3,"per kWh",35093,"2008-01-30","Not Scheduled",903,"HPS 100 Watt Security Light",39,2.94]
["Distribution System Charge     ",null,"DIS001",1.5488999999999999E-2,"per kWh",35093,"2008-01-30","Not Scheduled",904,"HPS 150 Watt Security Light",70,3.11]
[null,null,null,null,null,null,null,null,905,"HPS 250 Watt Security Light",105,3.6]
["RIDER CHARGES",null,null,null,null,null,null,null,"Flood Lighting"]
["SBF (System Benefit Fund)",null,"MSC024","0.000000","per kWh",46050,"2017-01-01","Revise 1/01/2017",null,"High Pressure Sodium (HPS)"]
["NDC (Nuclear Decommissioning Collections)",null,"MSC025",3.4999999999999997E-5,"per kWh",49163,"2019-05-30","Not Scheduled",906,"HPS 100 Watt Flood Light",39,3.6]
["TCRF (Transmission Cost Recovery Factor)",null,"TRN002",4.7739999999999996E-3,"per kWh",49580,"2019-09-01","Revise 9/01/2020",907,"HPS 250 Watt Flood Light",105,3.99]
["TC-3 (Transition Charge-3)",null,null,null,null,null,null,null,908,"HPS 400 Watt Flood Light",155,5.07]
[null,"Residential","MSC037",2.8969999999999998E-3,"per kWh",49219,"2019-02-28","Revise 2/28/2020",909,"HPS 1000 Watt Flood Light",367,5.55]
[null,"Commercial & Small Industrial - Energy","MSC037",8.0870000000000004E-3,"per kWh",49219,"2019-02-28","Revise 2/28/2020",null,"Metal Halide (MH)"]
["TC-2 (Transition Charge-2)",null,null,null,null,null,null,null,910,"MH 250 Watt Flood Light",105,5.21]
[null,"Residential","MSC036",8.8159999999999992E-3,"per kWh",49553,"2019-08-28","Revise 8/28/2020",911,"MH 400 Watt Flood Light",155,5.59]
[null,"Commercial & Small Industrial - Energy","MSC036",1.9293999999999999E-2,"per kWh",49553,"2019-08-28","Revise 8/28/2020",912,"MH 1000 Watt Flood Light 6x7 NBP",367,6.67]
["DCRF-Distribution Cost Recovery Factor",null,null,null,null,null,null,null,913,"MH 1000 Watt Flood Light 3x3 NBP",367,6.67]
[null,"Residential","MSC042",8.3479999999999995E-3,"per kWh",32475,"2018-08-28","Not Scheduled"]
[null,"Commercial & Small Industrial - Energy","MSC042",1.7772E-2,"per kWh",32475,"2018-08-28","Not Scheduled"]
["SRC - System Restoration Charge Factor",null,"MSC038",8.2150000000000001E-3,"per kWh",49308,"2019-09-18","Revised 9/18/2020"]
["ADIFIT- Accumulated Deferred Federal Income Tax Credit",null,"CRE031",-9.3899999999999995E-4,"per kWh",49308,"2019-09-18","Revised 9/18/2020"]
["MSC - Merger Savings Credit",null,"RRR008",-3.0049999999999999E-3,"per kWh",49028,"2019-08-28","Cr.Sept. 2019 Only"]

{"sheet":"TNCResidential","index":16,"n_rows":68,"n_cols":17,"rows_kept":68,"cut":false,"hidden":false,"merged":[[8,0,8,1],[6,3,6,4],[1,0,1,1],[0,0,0,1],[2,0,2,1],[3,0,3,1],[6,8,6,16],[7,3,7,4]]}
["AEP Texas - North Area"]
[{"$f":"IF(A3=\"All Rate Codes\",\"Billing Determinants for\",\"Billing Determinants for Rate Code\")","v":"Billing Determinants for"}]
["All Rate Codes"]
[{"$f":"IF(A3=\"All Rate Codes\",\"\",VLOOKUP(A3,'TNCRate code Table'!A8:C206,3,FALSE))","v":""}]
["RESIDENTIAL  SERVICE"]
[null,null,"810_02",null,null,null,null,"Estimated"]
[null,null,"SAC04","Approved Rate",null,"Docket","Effective","Revision or","Applicable Rate Codes"]
["Description of Charge or Rider",null,"Code","Cost / Unit",null," Number","Date","Termination Date",820]
["BASE CHARGES",null,null,null,null,null,null,null,"x","x","x","x","x","x","x","x","x"]
["Customer Charge",null,"BAS001",2.94,"per month",33310,"2007-05-30","Not Scheduled","x"]
["Metering Charge",null,"BAS003",5.24,"per month",33310,"2007-05-30","Not Scheduled","x"]
["Transmission System Charge",null,"TRN001",5.803E-3,"per kWh",33310,"2007-05-30","Not Scheduled","x"]
["Distribution System Charge",null,"DIS001",1.9007E-2,"per kWh",33310,"2007-05-30","Not Scheduled","x"]
[]
["RIDER CHARGES",null,null,null,null,null,null,null,"x","x","x","x","x","x","x","x","x"]
["SBF (System Benefit Fund)",null,"MSC024","0.00000","per kWh",46050,"2013-09-01","Not Scheduled","x"]
["EECRF (Energy Efficiency Cost Recovery Factor)",null,"MSC041",7.4299999999999995E-4,"per kWh",48422,"2019-03-01","Revise 3/01/2020","x"]
["AMSCRF","(Advanced Metering System Cost Recovery Fee)","MSC039",2.35,"per month",36928,"2009-12-30","Revise 12/29/2020","x"]
["DCRF-Distribution Cost Recovery Factor",null,"MSC042",3.8539999999999998E-3,"per kWh",48222,"2018-09-01","Not Scheduled","x"]
["TCRF (Transmission Cost Recovery Factor) ",null,"TRN002",1.0792E-2,"per kWh",49580,"2019-09-01","Revised 9/1/2020","x"]
["MSC - Merger Savings Credit",null,"RRR008",-1.3879999999999999E-3,"per kWh",49028,"2019-08-28","Cr. Sept. 2019 Only","x"]
[]
[]
[]
[]
[]
[]
[]
[]
[]
[]
[]
[]
[]
[]
[]
[]
[]
[]
[]
[]
[]
[]
[]
[]
[]
[]
[]
[]
[]
[]
[]
[]
[]
[]
[]
[]
[]
[]
[]
[]
[]
[]
[]
[]
[]
[]
[null,null,null,null,null,null,null,null,"x","x","x","x","x","x","x","x","x"]

{"sheet":"TNCSec<10KW","index":17,"n_rows":68,"n_cols":17,"rows_kept":68,"cut":false,"hidden":false,"merged":[[6,8,6,12],[7,3,7,4],[8,0,8,1],[6,3,6,4],[0,0,0,1],[1,0,1,1],[2,0,2,1],[3,0,3,1]]}
["AEP Texas - North Area"]
[{"$f":"IF(A3=\"All Rate Codes\",\"Billing Determinants for\",\"Billing Determinants for Rate Code\")","v":"Billing Determinants for"}]
["All Rate Codes"]
[{"$f":"IF(A3=\"All Rate Codes\",\"\",VLOOKUP(A3,'TNCRate code Table'!A8:C206,3,FALSE))","v":""}]
["SECONDARY VOLTAGE SERVICE LESS THAN OR EQUAL TO 10 KW"]
[null,null,"810_02",null,null,null,null,"Estimated"]
[null,null,"SAC04","Approved Rate",null,"Docket","Effective","Revision or","Applicable Rate Codes"]
["Description of Charge or Rider",null,"Code","Cost / Unit",null," Number","Date","Termination Date",824,825,829,850,852]
["BASE CHARGES",null,null,null,null,null,null,null,"x","x","x","x","x","X","X","X","X"]
["Customer Charge",null,"BAS001",4.25,"per month",33310,"2007-05-30","Not Scheduled","x","x","x","x","x"]
["Metering Charge",null,"BAS003",7.5,"per month",33310,"2007-05-30","Not Scheduled","x","x","x"]
["Transmission System Charge  ",null,"TRN001",3.1480000000000002E-3,"per kWh",33310,"2007-05-30","Not Scheduled","x","x","x","x","x"]
["Distribution System Charge     ",null,"DIS001",3.1947999999999997E-2,"per kWh",33310,"2007-05-30","Not Scheduled","x","x","x","x","x"]
[]
["RIDER CHARGES",null,null,null,null,null,null,null,"x","x","x","x","x",null,null,"X","X"]
["SBF (System Benefit Fund)",null,"MSC024","0.000000","per kWh",46050,"2013-09-01","Not Scheduled","x","x","x","x","x"]
["AMSCRF","(Advanced Metering System Cost Recovery Fee)","MSC039",4.4000000000000004,"per month",36928,"2009-12-30","Revise 12/29/2020","x","x","x","x","x"]
["EECRF (Energy Efficiency Cost Recovery Factor)",null,"MSC041",2.12E-4,"per kWh",48422,"2019-03-01","Revise 3/01/2020","x","x","x","x","x"]
["DCRF-Distribution Cost Recovery Factor",null,"MDC042",1.0585000000000001E-2,"per kWh",48222,"2018-09-01","Not Scheduled","x","x","x","x","x"]
["TCRF (Transmission Cost Recovery Factor)",null,"TRN002",6.9069999999999999E-3,"per kWh",49580,"2019-09-01","Revise 9/01/2020","x","x","x","x","x"]
["MSC - Merger Savings Credit",null,"RRR008",-2.8010000000000001E-3,"per kWh",49028,"2019-08-28","Cr. Sept. 2019 Only","x","x","x","x","x"]
[]
[]
[]
[]
[]
[]
[]
[]
[]
[]
[]
[]
[]
[]
[]
[]
[]
[]
[]
[]
[]
[]
[]
[]
[]
[]
[]
[]
[]
[]
[]
[]
[]
[]
[]
[]
[]
[]
[]
[]
[]
[]
[]
[]
[]
[]
[null,null,null,null,null,null,null,null,"x","x","x","x","x"]

{"sheet":"TNCSec>=10KW","index":18,"n_rows":68,"n_cols":22,"rows_kept":68,"cut":false,"hidden":false,"merged":[[6,8,6,18],[7,3,7,4],[8,0,8,1],[6,3,6,4],[0,0,0,1],[1,0,1,1],[2,0,2,1],[3,0,3,1]]}
["AEP Texas - North Area"]
[{"$f":"IF(A3=\"All Rate Codes\",\"Billing Determinants for\",\"Billing Determinants for Rate Code\")","v":"Billing Determinants for"}]
["All Rate Codes"]
[{"$f":"IF(A3=\"All Rate Codes\",\"\",VLOOKUP(A3,'TNCRate code Table'!A8:C206,3,FALSE))","v":""}]
["SECONDARY VOLTAGE SERVICE GREATER THAN 10 KW"]
[null,null,"810_02",null,null,null,null,"Estimated Next"]
[null,null,"SAC04","Approved Rate",null,"Docket","Effective","Revision or","Applicable Rate Codes"]
["Description of Charge or Rider",null,"Code","Cost / Unit",null," Number","Date","Termination Date",830,831,832,833,835,836,837,838,839,857,858]
["BASE CHARGES",null,null,null,null,null,null,null,"x","x","x","x","x","x","x","x","x","x","x","X","X","X"]
["Customer Charge (Non-IDR Metered)",null,"BAS001",4.25,"per month",34561,"2008-03-31","Not Scheduled","x","x","x","x","x","x",null,"x",null,"x"]
["Customer Charge (IDR Metered)",null,"BAS001",26,"per month",34561,"2008-03-31","Not Scheduled",null,null,null,null,null,null,"x",null,"x",null,"x"]
["Metering Charge (Non-IDR Metered)",null,"BAS003",18.68,"per month",34561,"2008-03-31","Not Scheduled","x","x","x","x","x","x",null,"x",null,"x"]
["Metering Charge (IDR Metered)",null,"BAS003",35,"per month",34561,"2008-03-31","Not Scheduled",null,null,null,null,null,null,"x",null,"x",null,"x"]
["Transmission System Charge (Non-IDR Metered)",null,"TRN001",1.2450000000000001,"per NCP kW",34561,"2008-03-31","Not Scheduled","x","x","x","x","x","x",null,"x",null,"x"]
["Transmission System Charge (IDR Metered)",null,"TRN001",1.9530000000000001,"per 4CP kW",34561,"2008-03-31","Not Scheduled",null,null,null,null,null,null,"x",null,"x",null,"x"]
["Distribution System Charge",null,"DIS001",3.21,"per NCP kW",34561,"2008-03-31","Not Scheduled","x","x","x","x","x","x","x","x","x","x","x"]
[]
["RIDER CHARGES",null,null,null,null,null,null,null,"x","x","x","x","x","x","x","x","x","x","x"]
["SBF (System Benefit Fund) ",null,"MSC024","0.000000","per kWh",46050,"2013-09-01","Not Scheduled","x","x","x","x","x","x","x","x","x","x","x"]
["AMSCRF","(Advanced Metering System Cost Recovery Fee)","MSC039",1.46,"per month",36928,"2009-12-30","Revise 12/29/2020","x","x","x","x","x","x",null,"x",null,"x"]
["EECRF (Energy Efficiency Cost Recovery Factor)",null,"MSC041",6.9800000000000005E-4,"per kWh",48422,"2019-03-01","Revise 3/01/2020","x","x","x","x","x","x","x","x","x","x","x"]
["DCRF-Distribution Cost Recovery Factor",null,"MSC042",0.679589,"per kW",48222,"2018-09-01","Not Scheduled","x","x","x","x","x","x","x","x","x","x","x"]
["TCRF (Transmission Cost Recovery Factor) ",null,null,null,null,null,null,null,"x","x","x","x","x","x","x","x","x","x","x"]
[null,"TCRF - IDR Metered","TRN002",3.1603620000000001,"per average 4CP kW",49580,"2019-09-01","Revise 9/01/2020",null,null,null,null,null,null,"x",null,"x",null,"x"]
[null,"TCRF - Non-IDR Metered","TRN002",2.3954339999999998,"per NCP kW",49580,"2019-09-01","Revise 9/01/2020","x","x","x","x","x","x",null,"x",null,"x"]
["MSC - Merger Savings Credit",null,null,null,null,null,null,null,"x","x","x","x","x","x","x","x","x","x","x"]
[null,"MSC - IDR Metered","RRR008",-0.24099100000000001,"per kW",49028,"2019-08-28","Cr. Sept. 2019 Only",null,null,null,null,null,null,"x",null,"x",null,"x"]
[null,"MSC - Non IDR Metered","RRR008",-0.229412,"per kW",49028,"2019-08-28","Cr. Sept. 2019 Only","x","x","x","x","x","x",null,"x",null,"x"]
[]
[]
[]
[]
[]
[]
[]
[]
[]
[]
[]
[]
[]
[]
[]
[]
[]
[]
[]
[]
[]
[]
[]
[]
[]
[]
[]
[]
[]
[]
[]
[]
[]
[]
[]
[]
[]
[]
[]
[null,null,null,null,null,null,null,null,"x","x","x","x","x","x","x","x","x","x","x"]

{"sheet":"TNCPrimary","index":19,"n_rows":68,"n_cols":19,"rows_kept":68,"cut":false,"hidden":false,"merged":[[8,0,8,1],[6,8,6,13],[6,3,6,4],[7,3,7,4],[0,0,0,1],[1,0,1,1],[2,0,2,1],[3,0,3,1]]}
["AEP Texas - North Area"]
[{"$f":"IF(A3=\"All Rate Codes\",\"Billing Determinants for\",\"Billing Determinants for Rate Code\")","v":"Billing Determinants for"}]
["All Rate Codes"]
[{"$f":"IF(A3=\"All Rate Codes\",\"\",VLOOKUP(A3,'TNCRate code Table'!A8:C206,3,FALSE))","v":""}]
["PRIMARY VOLTAGE SERVICE"]
[null,null,"810_02",null,null,null,null,"Estimated"]
[null,null,"SAC04","Approved Rate",null,"Docket","Effective","Revision or","Applicable Rate Codes"]
["Description of Charge or Rider",null,"Code","Cost / Unit",null," Number","Date","Termination Date",841,842,844,845,846,847]
["BASE CHARGES",null,null,null,null,null,null,null,"x","x","x","x","x","x","X","X","X","X","X"]
["Customer Charge (Non-IDR Metered)",null,"BAS001",4.25,"per month",34561,"2008-03-31","Not Scheduled","x",null,"x",null,"x"]
["Customer Charge (IDR Metered)",null,"BAS001",26,"per month",34561,"2008-03-31","Not Scheduled",null,"x",null,"x",null,"x"]
["Metering Charge (Non-IDR Metered)",null,"BAS003",151.75,"per month",34561,"2008-03-31","Not Scheduled","x",null,"x",null,"x"]
["Metering Charge (IDR Metered)",null,"BAS003",168.65,"per month",34561,"2008-03-31","Not Scheduled",null,"x",null,"x",null,"x"]
["Transmission System Charge (Non-IDR Metered)",null,"TRN001",1.1890000000000001,"per NCP kW",34561,"2008-03-31","Not Scheduled","x",null,"x",null,"x"]
["Transmission System Charge (IDR Metered)",null,"TRN001",1.9630000000000001,"per 4CP kW",34561,"2008-03-31","Not Scheduled",null,"x",null,"x",null,"x"]
["Distribution System Charge ",null,"DIS001",1.88,"per NCP kW",34561,"2008-03-31","Not Scheduled","x","x","x","x","x","x"]
[]
["RIDER CHARGES",null,null,null,null,null,null,null,"x","x","x","x","x","x",null,null,"X","X","X"]
["SBF (System Benefit Fund) ",null,"MSC024","0.000000","per kWh",46050,"2013-09-01","Not Scheduled","x","x","x","x","x","x"]
["EECRF (Energy Efficiency Cost Recovery Factor)",null,"MSC041",-5.5999999999999999E-5,"per kWh",48422,"2019-03-01","Revise 3/01/2020","x","x","x","x","x","x"]
["AMSCRF","(Advanced Metering System Cost Recovery Fee)","MSC039",0.22,"per month",36928,"2009-12-30","Revise 12/29/2020","x",null,"x",null,"x"]
["DCRF-Distribution Cost Recovery Factor",null,"MSC042",0.30518800000000001,"per kW",48222,"2018-09-01","Not Scheduled","x","x","x","x","x","x"]
["TCRF (Transmission Cost Recovery Factor) ",null,null,null,null,null,null,null,"x","x","x","x","x","x",null,null,"X","X","X"]
[null,"IDR Metered","TRN002",1.877624,"per average 4CP kW",49580,"2019-09-01","Revise 9/01/2020",null,"x",null,"x",null,"x"]
[null,"Non-IDR Metered","TRN002",0.85677999999999999,"per kW",49580,"2019-09-01","Revise 9/01/2020","x",null,"x",null,"x"]
["MSC - Merger Savings Credit",null,null,null,null,null,null,null,"x","x","x","x","x","x"]
[null,"MSC - IDR Metered","RRR008",-0.15723200000000001,"per kW",49028,"2019-08-28","Cr. Sept.2019 Only",null,"x",null,"x",null,"x"]
[null,"MSC - Non IDR Metered","RRR008",-0.198764,"per kW",49028,"2019-08-28","Cr. Sept.2019 Only","x",null,"x",null,"x"]
[]
[]
[]
[]
[]
[]
[]
[]
[]
[]
[]
[]
[]
[]
[]
[]
[]
[]
[]
[]
[]
[]
[]
[]
[]
[]
[]
[]
[]
[]
[]
[]
[]
[]
[]
[]
[]
[]
[]
[null,null,null,null,null,null,null,null,"x","x","x","x","x","x"]

{"sheet":"TNCTrans","index":20,"n_rows":16,"n_cols":19,"rows_kept":16,"cut":false,"hidden":false,"merged":[[8,0,8,1],[6,8,6,12],[6,3,6,4],[7,3,7,4],[0,0,0,1],[1,0,1,1],[2,0,2,1],[3,0,3,1]]}
["AEP Texas - North Area"]
[{"$f":"IF(A3=\"All Rate Codes\",\"Billing Determinants for\",\"Billing Determinants for Rate Code\")","v":"Billing Determinants for"}]
["All Rate Codes"]
[{"$f":"IF(A3=\"All Rate Codes\",\"\",VLOOKUP(A3,'TNCRate code Table'!A8:C206,3,FALSE))","v":""}]
["TRANSMISSION VOLTAGE SERVICE"]
[null,null,"810_02",null,null,null,null,"Estimated"]
[null,null,"SAC04","Approved Rate",null,"Docket","Effective","Revision or","Applicable Rate Codes"]
["Description of Charge or Rider",null,"Code","Cost / Unit",null," Number","Date","Termination Date",860,861,862]
[null,null,null,null,null,null,null,null,"X","X","X","X","X","X","X","X","X","X","X"]
[null,null,null,null,null,null,null,null,"X","X","X","X","X","X","X","X","X","X","X"]
[null,"Contact your AEP CRR Account Manager for details associated with this rate",null,null,null,null,null,null,"X","X","X","X","X","X","X","X","X","X","X"]
[null,null,null,null,null,null,null,null,"X","X","X","X","X","X","X","X","X","X","X"]
[null,null,null,null,null,null,null,null,"X","X","X","X","X","X","X","X","X","X","X"]
[null,null,null,null,null,null,null,null,"X","X","X","X","X","X","X","X","X","X","X"]
[null,null,null,null,null,null,null,null,"X","X","X","X","X","X","X","X","X","X","X"]
[null,null,null,null,null,null,null,null,"X","X","X","X","X","X","X","X","X","X","X"]

{"sheet":"TNC StreetLgt","index":21,"n_rows":31,"n_cols":12,"rows_kept":31,"cut":false,"hidden":false,"merged":[[5,8,5,11],[8,0,8,1],[6,3,6,4],[7,3,7,4],[0,0,0,1],[1,0,1,1],[2,0,2,1],[3,0,3,1]]}
["AEP Texas - North Area"]
[{"$f":"IF(A3=\"All Rate Codes\",\"Billing Determinants for\",\"Billing Determinants for Rate Code\")","v":"Billing Determinants for"}]
["All Rate Codes"]
[{"$f":"IF(A3=\"All Rate Codes\",\"\",VLOOKUP(A3,'TNCRate code Table'!A8:C206,3,FALSE))","v":""}]
["MUNICIPAL STREET LIGHTING SERVICE"]
[null,null,"810_02",null,null,null,null,"Estimated","Monthly Facilities Rate"]
[null,null,"SAC04","Approved Rate",null,"Docket","Effective","Revision or","Rate",null,"kWh","Facility"]
["Description of Charge or Rider",null,"Code","Cost / Unit",null," Number","Date","Termination Date","Code","Description","Usage","Price"]
[null,null,null,null,null,null,null,null,null,"Mercury Vapor (MV)"]
["Customer Charge",null,"BAS001",4.25,"per month ",35381,"2008-03-31","Not Scheduled",932,"MV 175 Watt ",70,4.84]
["Monthly Facilities Charge ",null,null,null,null,null,null,null,935,"MV 400 Watt ",160,8.8699999999999992]
[null,{"$f":"IF(A$3=\"All Rate Codes\",\"(varies by light type - See table to right)\",VLOOKUP(A$3,I$9:L$68,2,FALSE))","v":"(varies by light type - See table to right)"},"BAS003",{"$f":"IF(A$3=\"All Rate Codes\",\"See Table\",VLOOKUP(A$3,I$9:L$68,4,FALSE))","v":"See Table"},"per month per Light",35381,"2008-03-31","Not Scheduled",936,"Twin MV 400 Watt ",320,12.5]
[null,"kWh usage per light",null,{"$f":"IF(A$3=\"All Rate Codes\",\" See Table\",VLOOKUP(A$3,I$9:L$68,3,FALSE))","v":" See Table"},"kWh per mth per Light",null,null,null,null,"High Pressure Sodium (HPS)"]
["Transmission System Charge  ",null,"TRN001",3.1480000000000002E-3,"per kWh",35381,"2008-03-31","Not Scheduled",944,"HPS 70 Watt ",28,4.71]
["Distribution System Charge     ",null,"DIS001",2.8896999999999999E-2,"per kWh",35381,"2008-03-31","Not Scheduled",945,"HPS 100 Watt",39,5.59]
[null,null,null,null,null,null,null,null,946,"HPS 150 Watt ",57,4.97]
["RIDER CHARGES",null,null,null,null,null,null,null,947,"HPS 250 Watt ",104,7.39]
["SBF (System Benefit Fund)",null,"MSC024","0.000000","per kWh","46050","2013-09-01","Not Scheduled",948,"Twin HPS 150 Watt ",114,12.38]
[null,null,null,null,null,null,null,null,949,"HPS 400 Watt ",165,8.77]
["DCRF-Distribution Cost Recovery Factor",null,"MSC042",1.0585000000000001E-2,"per kWh",48222,"2018-09-01","Not Scheduled",950,"Twin HPS 250 Watt ",208,13.76]
["TCRF (Transmission Cost Recovery Factor)",null,"TRN002",6.9069999999999999E-3,"per kWh",49580,"2019-09-01","Revise 9-01-2020",955,"HPS 1000 Watt",367,5.86]
["MSC - Merger Savings Credit",null,"RRR008",-5.2459999999999998E-3,"per kWh",49028,"2019-08-28","Cr. Sept. 2019 Only",null,"Low Pressure Sodium (LPS)"]
[null,null,null,null,null,null,null,null,940,"LPS 35 Watt",24,8.93]
[null,null,null,null,null,null,null,null,941,"LPS 55 Watt",28,9.0500000000000007]
[null,null,null,null,null,null,null,null,942,"LPS 90 Watt",44,10.7]
[null,null,null,null,null,null,null,null,943,"Twin LPS 90 Watt",88,13]
[null,null,null,null,null,null,null,null,null,"Incandescent"]
[null,null,null,null,null,null,null,null,971,"Incandescent 500 Watt",227,7.71]
[null,null,null,null,null,null,null,null,null,"Metal Halide (MH)"]
[null,null,null,null,null,null,null,null,965,"MH 400 Watt",155,9.7100000000000009]
[null,null,null,null,null,null,null,null,966,"MH 1000 Watt",367,7.4]

{"sheet":"TNC NonRoadway","index":22,"n_rows":32,"n_cols":12,"rows_kept":32,"cut":false,"hidden":false,"merged":[[5,8,5,11],[8,0,8,1],[6,3,6,4],[7,3,7,4],[0,0,0,1],[1,0,1,1],[2,0,2,1],[3,0,3,1]]}
["AEP Texas - North Area"]
[{"$f":"IF(A3=\"All Rate Codes\",\"Billing Determinants for\",\"Billing Determinants for Rate Code\")","v":"Billing Determinants for"}]
["All Rate Codes"]
[{"$f":"IF(A3=\"All Rate Codes\",\"\",VLOOKUP(A3,'TNCRate code Table'!A8:C206,3,FALSE))","v":""}]
["NON-ROADWAY LIGHTING SERVICE"]
[null,null,"810_02",null,null,null,null,"Estimated","Monthly Facilities Rate"]
[null,null,"SAC04","Approved Rate",null,"Docket","Effective","Revision or","Rate",null,"kWh","Facility"]
["Description of Charge or Rider",null,"Code","Cost / Unit",null," Number","Date","Termination Date","Code","Description","Usage","Price"]
["BASE CHARGES",null,null,null,null,null,null,null,"Security Lighting"]
[null,null,null,null,null,null,null,null,null,"Mercury Vapor (MV)"]
["Monthly Facilities Charge ",null,null,null,null,null,null,null,901,"MV 175 Watt Security Light",70,4.71]
[null,{"$f":"IF(A$3=\"All Rate Codes\",\"(varies by light type - See table to right)\",VLOOKUP(A$3,I$9:L$68,2,FALSE))","v":"(varies by light type - See table to right)"},"BAS003",{"$f":"IF(A$3=\"All Rate Codes\",\"See Table\",VLOOKUP(A$3,I$9:L$68,4,FALSE))","v":"See Table"},"per month per Light",35381,"2008-03-31","Not Scheduled",902,"MV 400 Watt Security Light",160,6.66]
[null,"kWh usage per light",null,{"$f":"IF(A$3=\"All Rate Codes\",\" See Table\",VLOOKUP(A$3,I$9:L$68,3,FALSE))","v":" See Table"},"kWh per mth per Light",null,null,null,null,"High Pressure Sodium (HPS)"]
["Transmission System Charge  ",null,"TRN001",3.1480000000000002E-3,"per kWh",35381,"2008-03-31","Not Scheduled",903,"HPS 70 Watt Security Light",28,2.16]
["Distribution System Charge     ",null,"DIS001",2.8896999999999999E-2,"per kWh",35381,"2008-03-31","Not Scheduled",904,"HPS 150 Watt Security Light",57,2.2999999999999998]
["RIDER CHARGES",null,null,null,null,null,null,null,915,"HPS 100 Watt Security Light",39,5.0599999999999996]
["SBF (System Benefit Fund)",null,"MSC024","0.000000","per kWh",46050,"2013-09-01","Not Scheduled",916,"HPS 250 Watt Security Light",105,6.22]
["DCRF-Distribution Cost Recovery Factor",null,"MSC042",1.0585000000000001E-2,"per kWh",48222,"2018-09-01","Not Scheduled",null,"Low Pressure Sodium (HPS)"]
["TCRF (Transmission Cost Recovery Factor)",null,"TRN002",6.9069999999999999E-3,"per kWh",49580,"2019-09-01","Revise 9-01-2020",905,"LPS 35 Watt Security Light",24,4.09]
["MSC - Merger Savings Credit",null,"RRR008",-5.2459999999999998E-3,"per kWh",49028,"2019-08-28","Cr. Sept. 2019 Only",906,"LPS 55 Watt Security Light",28,4.4800000000000004]
[null,null,null,null,null,null,null,null,907,"LPS 90 Watt Security Light",44,4.74]
[null,null,null,null,null,null,null,null,"Flood Lighting"]
[null,null,null,null,null,null,null,null,null,"High Pressure Sodium (HPS)"]
[null,null,null,null,null,null,null,null,908,"HPS 150 Watt Flood Light",63,2.88]
[null,null,null,null,null,null,null,null,909,"HPS 250 Watt Flood Light",100,3.73]
[null,null,null,null,null,null,null,null,910,"HPS 400 Watt Flood Light",158,4.2300000000000004]
[null,null,null,null,null,null,null,null,911,"HPS 1000 Watt Flood Light",367,5.86]
[null,null,null,null,null,null,null,null,917,"HPS 100 Watt Flood Light",39,6.23]
[null,null,null,null,null,null,null,null,null,"Metal Halide (MH)"]
[null,null,null,null,null,null,null,null,912,"MH 250 Watt Flood Light",97,5.68]
[null,null,null,null,null,null,null,null,913,"MH 400 Watt Flood Light",153,6.16]
[null,null,null,null,null,null,null,null,914,"MH 1000 Watt Flood Light",367,7.4]

{"sheet":"Transmission","index":23,"n_rows":39,"n_cols":7,"rows_kept":39,"cut":false,"hidden":true,"merged":[[2,0,2,5]]}
[]
[]
["CPL TRANSMISSION SERVICE"]
[{"$f":"TCCPrimary!A5","v":"PRIMARY VOLTAGE SERVICE"}]
[null,null,null,null,9600000,"KWH"]
[null,null,null,null,5500,"KW"]
[null,null,null,null,{"$f":"ROUND((E5/E6)/8760,2)","v":0.2}]
[]
[]
["Transmission and Distribution Charges"]
["Customer Charge",38.840000000000003,null,"per month",{"$f":"B11","v":38.840000000000003}]
["Metering Charge",1869.15,null,"per month",{"$f":"B12","v":1869.15}]
["Transmission System Charge ",1.718,null,"per 4CP kW",{"$f":"ROUND(E6*B13,2)","v":9449}]
["Distribution System Charge ",0.19900000000000001,null,"per NCP kW",{"$f":"ROUND(E6*B14,2)","v":1094.5}]
["Total Wires Base Bill",null,null,null,{"$f":"SUM(E11:E14)","v":12451.49}]
[]
["Rider Charges"]
["System Benefit Fund Charge",6.2399999999999999E-4,null,"per kWh",{"$f":"ROUND(E5*$B$18,2)","v":5990.4}]
["NDC (Nuclear Decommissioning Collections)",5.3088999999999997E-2,null,"per kW",{"$f":"ROUND(E6*$B$19,2)","v":291.99}]
["RCS (Rate Case Surcharge)",2.4199999999999998E-3,null,"x Base Chgs*",{"$f":"ROUND((E15+E21)*$B$20,2)","v":32.049999999999997}]
["TCRF (Tra. Cost Recovery Factor ",0.14371300000000001,"**","per kW",{"$f":"ROUND(E6*B21,2)","v":790.42}]
["CTC (Competition Transition Charge)",-1.0145960000000001,null,"per kW",{"$f":"ROUND(E$6*B22,2)","v":-5580.28}]
["TCE (True-Up Case Expenses)",2.0310000000000002E-2,null,"per kW",{"$f":"ROUND(E$6*B23,2)","v":111.71}]
["TC-2 Charge (Transition Charge-2)",1.2701260000000001,null,"per kW",{"$f":"ROUND(E$6*B24,2)","v":6985.69}]
["TC Charge   (L.I. Firm)",0.80114799999999997,null,"per kW ",{"$f":"ROUND(E6*$B$25,2)","v":4406.3100000000004}]
["Total Riders Charges",null,null,null,{"$f":"SUM(E18:E25)","v":13028.29}]
[]
[]
["Total Wires Bill",null,null,null,{"$f":"E15+E26","v":25479.78}]
["Total $ per kWh",null,null,null,{"$f":"ROUND(E29/$E$5,4)","v":2.7000000000000001E-3}]
[]
["Total Bill w/o CTC Credit",null,null,null,{"$f":"E29-E22","v":31060.059999999998}]
["Total $ per kWh",null,null,null,{"$f":"ROUND(E32/$E$5,4)","v":3.2000000000000002E-3}]
[]
["Difference",null,null,null,{"$f":"E32-E29","v":5580.2799999999988}]
["Total $ per kWh",null,null,null,{"$f":"E33-E30","v":5.0000000000000001E-4}]
[null,null,null,null,null,null,{"$f":"G30/100","v":0}]
["*  Base Charges includes TCRF"]
["** Proposed TCRF effective 3/1/08"]